Workbook

Sheet Local Estimate
A1: SC120020/1 Appendix C_Sewer Capacity-MC Analysis Tool (v0.2-March 2015).xls
A2: Monte Carlo Analysis of sewer capacity after WBSWFR/TN3 Sewer Capacity and Infiltration Analysis (Horritt et al., 2009)
A3: Local estimate for Ellenbrook: E612500N242500_05000m
A6: Input: Ranges for MC sampling
A7: Location Name: | B7: Ellenbrook
A8: Reference: | B8: E612500N242500_05000m
A10: Table 1: Input national range, local range or exact value for MC analysis
E11: DDF parameters
B12: SOP (years) | C12: tcrit (hours) | D12: PR | E12: C | F12: D1 | G12: E | H12: F
A13: Estimate | B13: national range | C13: local range | D13: national range | E13: exact value | F13: exact value | G13: exact value | H13: exact value
A14: minimum of range | B14: 5 | C14: 0.5 | D14: 0.3
A15: mode or exact value | B15: 10 | E15: -0.022 | F15: 0.314 | G15: 0.313 | H15: 2.522
A16: maximum of range | B16: 30 | C16: 1 | D16: 0.8
A17: ymode | B17: =((B15-B14)^2)/((B16-B14)*(B15-B14)) -> 0.2
A20: Calculations: Monte Carlo Analysis of sewer capacity | U20: Results: Frequency Distribution and summary statistics
A22: Table 2: Randomly generated MC samples | J22: Table 3: Calculated sewer capacity for each set of MC samples | N22: Table 4: Frequency distribution of sewer capacity | U22: Table 5: National estimate (fixed)
A23: triangular distribution | C23: uniform distribution | E23: DDF | K23: Infiltration rate (mm/hr) | N23: bin interval | O23: 0.5 | P23: Local Estimate | Q23: FIXED National estimate | U23: Minimum estimate | V23: =MIN(L25:L15024) -> 3.425418129
A24: y (rand) | B24: SOP | C24: tcrit | D24: PR | E24: C | F24: D1 | G24: E | H24: F | J24: y | K24: specific location | L24: national estimate (fixed) | N24: bin nr | O24: bins | P24: count | Q24: count | U24: maximum estimate | V24: =MAX(L25:L15024) -> 42.23756346
A25: =RAND() -> 0.915614203 | B25: =IF($B$13="exact vlaue",$B$15,(IF(A25<=$B$17,($B$14+(SQRT(A25*($B$16-$B$14)*($B$15-$B$14)))),($B$16+((SQRT(A25)-1)*(SQRT(($B$16-$B$14)*($B$16-$B$15)))))))) -> 29.03574753 | C25: =IF($C$13="exact value",$C$15,(RANDBETWEEN(($C$14*1000),($C$16*1000))/1000)) -> 0.817 | D25: =IF($D$13="exact value",$D$15,(RANDBETWEEN(($D$14*1000),($D$16*1000))/1000)) -> 0.321 | E25: =IF($E$13="exact value",$E$15,(RANDBETWEEN(($E$14*1000),($E$16*1000))/1000)) -> -0.022 | F25: =IF($F$13="exact value",$F$15,(RANDBETWEEN(($F$14*1000),($F$16*1000))/1000)) -> 0.314 | G25: =IF($G$13="exact value",$G$15,(RANDBETWEEN(($G$14*1000),($G$16*1000))/1000)) -> 0.313 | H25: =IF($H$13="exact value",$H$15,(RANDBETWEEN(($H$14*1000),($H$16*1000))/1000)) -> 2.522 | J25: =-LN(-LN(1-(1/B25))) -> 3.351055248 | K25: =D25*(C25^((E25*J25)+F25-1))*EXP((G25*J25)+H25) -> 13.30471514 | L25: 5.598317256 | N25: 0 | O25: =N25*$O$23 -> 0 | P25: =Z24 -> 0 | Q25: =O25 -> 0 | U25: Modal estimate | V25: =INDEX($O$25:$Q$125,MATCH(MAX($Q$25:$Q$125),$Q$25:$Q$125,0),1)-($O$23/2) -> 10.75
A26: =RAND() -> 0.6185485326 | B26: =IF($B$13="exact vlaue",$B$15,(IF(A26<=$B$17,($B$14+(SQRT(A26*($B$16-$B$14)*($B$15-$B$14)))),($B$16+((SQRT(A26)-1)*(SQRT(($B$16-$B$14)*($B$16-$B$15)))))))) -> 25.22551556 | C26: =IF($C$13="exact value",$C$15,(RANDBETWEEN(($C$14*1000),($C$16*1000))/1000)) -> 0.873 | D26: =IF($D$13="exact value",$D$15,(RANDBETWEEN(($D$14*1000),($D$16*1000))/1000)) -> 0.679 | E26: =IF($E$13="exact value",$E$15,(RANDBETWEEN(($E$14*1000),($E$16*1000))/1000)) -> -0.022 | F26: =IF($F$13="exact value",$F$15,(RANDBETWEEN(($F$14*1000),($F$16*1000))/1000)) -> 0.314 | G26: =IF($G$13="exact value",$G$15,(RANDBETWEEN(($G$14*1000),($G$16*1000))/1000)) -> 0.313 | H26: =IF($H$13="exact value",$H$15,(RANDBETWEEN(($H$14*1000),($H$16*1000))/1000)) -> 2.522 | J26: 3.207699395 | K26: 25.57544736 | L26: 19.35629293 | N26: 1 | O26: 0.5 | P26: =COUNTIF($K$25:$K$100500,"<="&O26)-COUNTIF($K$25:$K$100500,"<="&O25) -> 0 | Q26: =COUNTIF($L$25:$L$100500,"<="&O26)-COUNTIF($L$25:$L$100500,"<="&O25) -> 0 | U26: Mean | V26: =AVERAGE(L25:L15024) -> 13.88787843
A27: 0.8826216838 | B27: 28.64671992 | C27: 0.636 | D27: 0.351 | E27: -0.022 | F27: 0.314 | G27: 0.313 | H27: 2.522 | J27: 3.337325625 | K27: 17.51915778 | L27: 8.157602767 | N27: 2 | O27: 1 | P27: =COUNTIF($K$25:$K$100500,"<="&O27)-COUNTIF($K$25:$K$100500,"<="&O26) -> 0 | Q27: =COUNTIF($L$25:$L$100500,"<="&O27)-COUNTIF($L$25:$L$100500,"<="&O26) -> 0 | U27: Standard deviation | V27: =STDEV(L25:L15024) -> 5.910416344
A28: 0.005849098165 | B28: 5.855065653 | C28: 0.827 | D28: 0.402 | E28: -0.022 | F28: 0.314 | G28: 0.313 | H28: 2.522 | J28: 1.67512597 | K28: 9.701859269 | L28: 6.135350421 | N28: 3 | O28: 1.5 | P28: 0 | Q28: 0
A29: 0.5874331557 | B29: 24.77748167 | C29: 0.809 | D29: 0.702 | E29: -0.022 | F29: 0.314 | G29: 0.313 | H29: 2.522 | J29: 3.189407827 | K29: 27.84733235 | L29: 18.92808196 | N29: 4 | O29: 2 | P29: 0 | Q29: 0 | U29: Table 6: Local estimate
A30: 0.25928457 | B30: 19.02537683 | C30: 0.919 | D30: 0.679 | E30: -0.022 | F30: 0.314 | G30: 0.313 | H30: 2.522 | J30: 2.918898616 | K30: 22.46258887 | L30: 9.926281331 | N30: 5 | O30: 2.5 | P30: 0 | Q30: 0 | U30: Minimum estimate | V30: =MIN($K$25:$K$15024) -> 6.749795805
A31: 0.815257071 | B31: 27.82913289 | C31: 0.954 | D31: 0.354 | E31: -0.022 | F31: 0.314 | G31: 0.313 | H31: 2.522 | J31: 3.307841681 | K31: 12.86651111 | L31: 20.01682505 | N31: 6 | O31: 3 | P31: 0 | Q31: 0 | U31: maximum estimate | V31: =MAX($K$25:$K$15024) -> 48.08545784
A32: 0.2980757132 | B32: 19.84742641 | C32: 0.727 | D32: 0.789 | E32: -0.022 | F32: 0.314 | G32: 0.313 | H32: 2.522 | J32: 2.96233672 | K32: 31.55454119 | L32: 6.449378153 | N32: 7 | O32: 3.5 | P32: 0 | Q32: 10 | U32: Modal estimate | V32: =INDEX($O$25:$P$125,MATCH(MAX($P$25:$P$125),$P$25:$P$125,0),1)-($O$23/2) -> 16.75
A33: 0.9898837943 | B33: 29.88660988 | C33: 0.958 | D33: 0.671 | E33: -0.022 | F33: 0.314 | G33: 0.313 | H33: 2.522 | J33: 3.380442614 | K33: 24.87138539 | L33: 21.88525175 | N33: 8 | O33: 4 | P33: 0 | Q33: 97 | U33: Mean | V33: =AVERAGE(K25:K15024) -> 22.19014514
A34: 0.4576632112 | B34: 22.76650124 | C34: 0.511 | D34: 0.565 | E34: -0.022 | F34: 0.314 | G34: 0.313 | H34: 2.522 | J34: 3.102915246 | K34: 30.83606882 | L34: 16.07431227 | N34: 9 | O34: 4.5 | P34: 0 | Q34: 292 | U34: Standard deviation | V34: =STDEV(K25:K15024) -> 7.508824664
A35: 0.6966614525 | B35: 26.30294062 | C35: 0.739 | D35: 0.549 | E35: -0.022 | F35: 0.314 | G35: 0.313 | H35: 2.522 | J35: 3.250363278 | K35: 23.77942556 | L35: 13.98298965 | N35: 10 | O35: 5 | P35: 0 | Q35: 542
A36: 0.9934081727 | B36: 29.92617928 | C36: 0.587 | D36: 0.531 | E36: -0.022 | F36: 0.314 | G36: 0.313 | H36: 2.522 | J36: 3.381788479 | K36: 28.57677798 | L36: 8.531486597 | N36: 11 | O36: 5.5 | P36: 0 | Q36: 994 | U36: table 7: Local estimate +/- 1 st dev:
A37: 0.2858267628 | B37: 19.59395871 | C37: 0.919 | D37: 0.335 | E37: -0.022 | F37: 0.314 | G37: 0.313 | H37: 2.522 | J37: 2.949143345 | K37: 11.1884659 | L37: 7.314026035 | N37: 12 | O37: 6 | P37: 0 | Q37: 1514 | U37: lower | V37: =V32-V34 -> 9.241175336
A38: 0.9560612038 | B38: 29.50323117 | C38: 0.632 | D38: 0.493 | E38: -0.022 | F38: 0.314 | G38: 0.313 | H38: 2.522 | J38: 3.367308164 | K38: 24.9655404 | L38: 25.9390785 | N38: 13 | O38: 6.5 | P38: 1 | Q38: 2113 | U38: mode | V38: =V32 -> 16.75
A39: 0.215253708 | B39: 18.01365654 | C39: 0.807 | D39: 0.554 | E39: -0.022 | F39: 0.314 | G39: 0.313 | H39: 2.522 | J39: 2.86270917 | K39: 19.84678998 | L39: 6.279702434 | N39: 14 | O39: 7 | P39: 19 | Q39: 2568 | U39: higher | V39: =V32+V34 -> 24.25882466
A40: =RAND() -> 0.645352508 | B40: 25.60251187 | C40: 0.986 | D40: 0.357 | E40: -0.022 | F40: 0.314 | G40: 0.313 | H40: 2.522 | J40: 3.222835646 | K40: 12.32216372 | L40: 14.69249538 | N40: 15 | O40: 7.5 | P40: 80 | Q40: 3024
A41: 0.7601166829 | B41: 27.13440528 | C41: 0.765 | D41: 0.793 | E41: -0.022 | F41: 0.314 | G41: 0.313 | H41: 2.522 | J41: 3.282086322 | K41: 33.80026819 | L41: 24.33869384 | N41: 16 | O41: 8 | P41: 180 | Q41: 3207
A42: 0.2631297026 | B42: 19.10949247 | C42: 0.642 | D42: 0.463 | E42: -0.022 | F42: 0.314 | G42: 0.313 | H42: 2.522 | J42: 2.923431093 | K42: 20.07591325 | L42: 11.18440484 | N42: 17 | O42: 8.5 | P42: 288 | Q42: 3483
A43: 0.3025723635 | B43: 19.93916501 | C43: 0.852 | D43: 0.712 | E43: -0.022 | F43: 0.314 | G43: 0.313 | H43: 2.522 | J43: 2.967069255 | K43: 25.31371066 | L43: 9.68237762 | N43: 18 | O43: 9 | P43: 386 | Q43: 3549
A44: 0.1360408421 | B44: 9.123724684 | C44: 0.545 | D44: 0.458 | E44: -0.022 | F44: 0.314 | G44: 0.313 | H44: 2.522 | J44: 2.153394909 | K44: 17.46611238 | L44: 10.0689269 | N44: 19 | O44: 9.5 | P44: 458 | Q44: 3815
A45: 0.626167493 | B45: 25.3334929 | C45: 0.702 | D45: 0.498 | E45: -0.022 | F45: 0.314 | G45: 0.313 | H45: 2.522 | J45: 3.212058111 | K45: 22.15235285 | L45: 14.96214352 | N45: 20 | O45: 10 | P45: 530 | Q45: 3847
A46: 0.05351468912 | B46: 7.586375097 | C46: 0.87 | D46: 0.739 | E46: -0.022 | F46: 0.314 | G46: 0.313 | H46: 2.522 | J46: 1.956510875 | K46: 18.79251429 | L46: 11.91896321 | N46: 21 | O46: 10.5 | P46: 774 | Q46: 3860
A47: 0.1926662144 | B47: 9.907471529 | C47: 0.864 | D47: 0.532 | E47: -0.022 | F47: 0.314 | G47: 0.313 | H47: 2.522 | J47: 2.240561448 | K47: 14.8748345 | L47: 6.952374575 | N47: 22 | O47: 11 | P47: 1008 | Q47: 3934
A48: 0.9905836146 | B48: 29.8944726 | C48: 0.543 | D48: 0.363 | E48: -0.022 | F48: 0.314 | G48: 0.313 | H48: 2.522 | J48: 3.380710191 | K48: 20.72063674 | L48: 10.16499012 | N48: 23 | O48: 11.5 | P48: 1234 | Q48: 3914
A49: 0.461328963 | B49: 22.82696262 | C49: 0.868 | D49: 0.722 | E49: -0.022 | F49: 0.314 | G49: 0.313 | H49: 2.522 | J49: 3.105627827 | K49: 26.44629671 | L49: 28.47111318 | N49: 24 | O49: 12 | P49: 1480 | Q49: 3810
A50: 0.3111455517 | B50: 20.11220184 | C50: 0.744 | D50: 0.679 | E50: -0.022 | F50: 0.314 | G50: 0.313 | H50: 2.522 | J50: 2.975935201 | K50: 26.80408012 | L50: 12.58266219 | N50: 25 | O50: 12.5 | P50: 1662 | Q50: 3919
A51: 0.665251895 | B51: 25.87735596 | C51: 0.998 | D51: 0.329 | E51: -0.022 | F51: 0.314 | G51: 0.313 | H51: 2.522 | J51: 3.233727859 | K51: 11.29065161 | L51: 11.86695959 | N51: 26 | O51: 13 | P51: 1800 | Q51: 3755
A52: 0.9719473911 | B52: 29.6841313 | C52: 0.706 | D52: 0.781 | E52: -0.022 | F52: 0.314 | G52: 0.313 | H52: 2.522 | J52: 3.373527259 | K52: 36.43012672 | L52: 8.828836464 | N52: 27 | O52: 13.5 | P52: 1982 | Q52: 3579
A53: 0.1178647401 | B53: 8.838371075 | C53: 0.739 | D53: 0.563 | E53: -0.022 | F53: 0.314 | G53: 0.313 | H53: 2.522 | J53: 2.11966746 | K53: 16.98907364 | L53: 14.47794434 | N53: 28 | O53: 14 | P53: 2057 | Q53: 3549
A54: 0.4638006943 | B54: 22.86759482 | C54: 0.61 | D54: 0.626 | E54: -0.022 | F54: 0.314 | G54: 0.313 | H54: 2.522 | J54: 3.107446652 | K54: 29.93729893 | L54: 20.096656 | N54: 29 | O54: 14.5 | P54: 2232 | Q54: 3355
A55: 0.06358459414 | B55: 7.819232922 | C55: 0.573 | D55: 0.387 | E55: -0.022 | F55: 0.314 | G55: 0.313 | H55: 2.522 | J55: 1.988946813 | K55: 13.48515071 | L55: 32.67411649 | N55: 30 | O55: 15 | P55: 2334 | Q55: 3112
A56: 0.946278584 | B56: 29.39108549 | C56: 0.98 | D56: 0.732 | E56: -0.022 | F56: 0.314 | G56: 0.313 | H56: 2.522 | J56: 3.363433237 | K56: 26.52622339 | L56: 20.56778696 | N56: 31 | O56: 15.5 | P56: 2369 | Q56: 2894
A57: 0.5797618109 | B57: 24.66520949 | C57: 0.507 | D57: 0.393 | E57: -0.022 | F57: 0.314 | G57: 0.313 | H57: 2.522 | J57: 3.184771244 | K57: 22.16336129 | L57: 27.08851519 | N57: 32 | O57: =N57*$O$23 -> 16 | P57: 2483 | Q57: 2586
A58: 0.9129768546 | B58: 29.00491002 | C58: 0.97 | D58: 0.709 | E58: -0.022 | F58: 0.314 | G58: 0.313 | H58: 2.522 | J58: 3.34997378 | K58: 25.78471522 | L58: 12.52674022 | N58: 33 | O58: 16.5 | P58: 2411 | Q58: 2445
A59: 0.4278682523 | B59: 22.26580737 | C59: 0.876 | D59: 0.67 | E59: -0.022 | F59: 0.314 | G59: 0.313 | H59: 2.522 | J59: 3.080164328 | K59: 24.17705447 | L59: 14.31972624 | N59: 34 | O59: 17 | P59: 2629 | Q59: 2203
A60: 0.1404707605 | B60: 9.19032756 | C60: 0.662 | D60: 0.68 | E60: -0.022 | F60: 0.314 | G60: 0.313 | H60: 2.522 | J60: 2.161105612 | K60: 22.54116224 | L60: 13.22545336 | N60: 35 | O60: 17.5 | P60: 2529 | Q60: 2048
A61: 0.7764430768 | B61: 27.34265848 | C61: 0.958 | D61: 0.724 | E61: -0.022 | F61: 0.314 | G61: 0.313 | H61: 2.522 | J61: 3.289876683 | K61: 26.08362152 | L61: 4.385522744 | N61: 36 | O61: 18 | P61: 2473 | Q61: 1882
A62: 0.4028852353 | B62: 21.83236844 | C62: 0.763 | D62: 0.506 | E62: -0.022 | F62: 0.314 | G62: 0.313 | H62: 2.522 | J62: 3.060042399 | K62: 20.1327109 | L62: 10.10398239 | N62: 37 | O62: 18.5 | P62: 2537 | Q62: 1763
A63: 0.4868592187 | B63: 23.24155113 | C63: 0.793 | D63: 0.438 | E63: -0.022 | F63: 0.314 | G63: 0.313 | H63: 2.522 | J63: 3.124032533 | K63: 17.27623051 | L63: 8.117526105 | N63: 38 | O63: 19 | P63: 2619 | Q63: 1602
A64: 0.5426240276 | B64: 24.11087188 | C64: 0.932 | D64: 0.366 | E64: -0.022 | F64: 0.314 | G64: 0.313 | H64: 2.522 | J64: 3.161557766 | K64: 12.9313375 | L64: 12.76715839 | N64: 39 | O64: 19.5 | P64: 2617 | Q64: 1419
A65: 0.7114854576 | B65: 26.50046358 | C65: 0.735 | D65: 0.649 | E65: -0.022 | F65: 0.314 | G65: 0.313 | H65: 2.522 | J65: 3.257991078 | K65: 28.29557673 | L65: 9.461466878 | N65: 40 | O65: 20 | P65: 2504 | Q65: 1381
A66: 0.6220913637 | B66: 25.27580746 | C66: 0.682 | D66: 0.548 | E66: -0.022 | F66: 0.314 | G66: 0.313 | H66: 2.522 | J66: 3.20973189 | K66: 24.89686001 | L66: 24.07982367 | N66: 41 | O66: 20.5 | P66: 2517 | Q66: 1254
A67: 0.4785251716 | B67: 23.10743536 | C67: 0.771 | D67: 0.589 | E67: -0.022 | F67: 0.314 | G67: 0.313 | H67: 2.522 | J67: 3.118115768 | K67: 23.68607325 | L67: 14.37158112 | N67: 42 | O67: 21 | P67: 2453 | Q67: 1118
A68: 0.7715950249 | B68: 27.28104908 | C68: 0.871 | D68: 0.732 | E68: -0.022 | F68: 0.314 | G68: 0.313 | H68: 2.522 | J68: 3.287578307 | K68: 28.32577742 | L68: 12.9458735 | N68: 43 | O68: 21.5 | P68: 2344 | Q68: 1072
A69: 0.390159648 | B69: 21.60641813 | C69: 0.978 | D69: 0.552 | E69: -0.022 | F69: 0.314 | G69: 0.313 | H69: 2.522 | J69: 3.049390062 | K69: 18.15606612 | L69: 11.95816788 | N69: 44 | O69: 22 | P69: 2281 | Q69: 986
A70: 0.2859196664 | B70: 19.59590139 | C70: 0.996 | D70: 0.646 | E70: -0.022 | F70: 0.314 | G70: 0.313 | H70: 2.522 | J70: 2.94924513 | K70: 20.31109944 | L70: 24.72935329 | N70: 45 | O70: 22.5 | P70: 2205 | Q70: 895
A71: 0.5634091023 | B71: 24.42337668 | C71: 0.513 | D71: 0.469 | E71: -0.022 | F71: 0.314 | G71: 0.313 | H71: 2.522 | J71: 3.174710453 | K71: 26.1288989 | L71: 7.974258835 | N71: 46 | O71: 23 | P71: 2256 | Q71: 842
A72: 0.08940770992 | B72: 8.343047074 | C72: 0.838 | D72: 0.621 | E72: -0.022 | F72: 0.314 | G72: 0.313 | H72: 2.522 | J72: 2.058270306 | K72: 16.76107304 | L72: 14.01669594 | N72: 47 | O72: 23.5 | P72: 2186 | Q72: 749
A73: 0.6573750255 | B73: 25.76906134 | C73: 0.796 | D73: 0.422 | E73: -0.022 | F73: 0.314 | G73: 0.313 | H73: 2.522 | J73: 3.229450244 | K73: 17.16363762 | L73: 23.30451763 | N73: 48 | O73: 24 | P73: 2189 | Q73: 710
A74: 0.5170271564 | B74: 23.71767767 | C74: 0.514 | D74: 0.724 | E74: -0.022 | F74: 0.314 | G74: 0.313 | H74: 2.522 | J74: 3.144759336 | K74: 39.88280917 | L74: 10.76898108 | N74: 49 | O74: 24.5 | P74: 2166 | Q74: 659
A75: 0.9270424306 | B75: 29.16886307 | C75: 0.882 | D75: 0.624 | E75: -0.022 | F75: 0.314 | G75: 0.313 | H75: 2.522 | J75: 3.35571022 | K75: 24.43798154 | L75: 21.37079871 | N75: 50 | O75: 25 | P75: 2176 | Q75: 577
A76: 0.3098457984 | B76: 20.08612299 | C76: 0.886 | D76: 0.627 | E76: -0.022 | F76: 0.314 | G76: 0.313 | H76: 2.522 | J76: 2.974604013 | K76: 21.69746677 | L76: 5.357965178 | N76: 51 | O76: 25.5 | P76: 2121 | Q76: 540
A77: 0.3741563686 | B77: 21.31697296 | C77: 0.567 | D77: 0.318 | E77: -0.022 | F77: 0.314 | G77: 0.313 | H77: 2.522 | J77: 3.035576312 | K77: 15.69837732 | L77: 6.907797362 | N77: 52 | O77: 26 | P77: 2029 | Q77: 504
A78: 0.5276978242 | B78: 23.88274696 | C78: 0.682 | D78: 0.48 | E78: -0.022 | F78: 0.314 | G78: 0.313 | H78: 2.522 | J78: 3.151845996 | K78: 21.40547706 | L78: 17.36615355 | N78: 53 | O78: 26.5 | P78: 2088 | Q78: 461
A79: 0.3320494677 | B79: 20.52437878 | C79: 0.656 | D79: 0.625 | E79: -0.022 | F79: 0.314 | G79: 0.313 | H79: 2.522 | J79: 2.996742588 | K79: 27.30270126 | L79: 16.74701014 | N79: 54 | O79: 27 | P79: 1959 | Q79: 403
A80: 0.6906212899 | B80: 26.22185625 | C80: 0.964 | D80: 0.518 | E80: -0.022 | F80: 0.314 | G80: 0.313 | H80: 2.522 | J80: 3.247215093 | K80: 18.3268832 | L80: 14.18789869 | N80: 55 | O80: 27.5 | P80: 1865 | Q80: 385
A81: 0.5804552933 | B81: 24.67538922 | C81: 0.831 | D81: 0.644 | E81: -0.022 | F81: 0.314 | G81: 0.313 | H81: 2.522 | J81: 3.18519253 | K81: 25.00003733 | L81: 4.773713971 | N81: 56 | O81: 28 | P81: 1831 | Q81: 369
A82: 0.5735171051 | B82: 24.57326697 | C82: 0.682 | D82: 0.608 | E82: -0.022 | F82: 0.314 | G82: 0.313 | H82: 2.522 | J82: 3.180958147 | K82: 27.36850312 | L82: 8.283160519 | N82: 57 | O82: 28.5 | P82: 1690 | Q82: 306
A83: 0.9373780696 | B83: 29.28854734 | C83: 0.811 | D83: 0.371 | E83: -0.022 | F83: 0.314 | G83: 0.313 | H83: 2.522 | J83: 3.359877084 | K83: 15.50684092 | L83: 24.51746085 | N83: 58 | O83: 29 | P83: 1632 | Q83: 301
A84: 0.6552118375 | B84: 25.73920748 | C84: 0.676 | D84: 0.705 | E84: -0.022 | F84: 0.314 | G84: 0.313 | H84: 2.522 | J84: 3.228267798 | K84: 32.43738138 | L84: 22.97440492 | N84: 59 | O84: 29.5 | P84: 1459 | Q84: 283
A85: 0.9530822623 | B85: 29.46914228 | C85: 0.824 | D85: 0.694 | E85: -0.022 | F85: 0.314 | G85: 0.313 | H85: 2.522 | J85: 3.366131892 | K85: 28.71590071 | L85: 15.07921338 | N85: 60 | O85: 30 | P85: 1337 | Q85: 235
A86: 0.197474758 | B86: 9.968334203 | C86: 0.91 | D86: 0.425 | E86: -0.022 | F86: 0.314 | G86: 0.313 | H86: 2.522 | J86: 2.247022316 | K86: 11.46170182 | L86: 17.49409805 | N86: 61 | O86: 30.5 | P86: 1252 | Q86: 218
A87: 0.5593128651 | B87: 24.36225156 | C87: 0.52 | D87: 0.346 | E87: -0.022 | F87: 0.314 | G87: 0.313 | H87: 2.522 | J87: 3.172151399 | K87: 19.06389483 | L87: 7.95824968 | N87: 62 | O87: 31 | P87: 1166 | Q87: 188
A88: 0.07809454419 | B88: 8.124390824 | C88: 0.914 | D88: 0.792 | E88: -0.022 | F88: 0.314 | G88: 0.313 | H88: 2.522 | J88: 2.029916213 | K88: 19.88317921 | L88: 14.69641498 | N88: 63 | O88: 31.5 | P88: 1179 | Q88: 204
A89: 0.08579540494 | B89: 8.274816883 | C89: 0.766 | D89: 0.507 | E89: -0.022 | F89: 0.314 | G89: 0.313 | H89: 2.522 | J89: =-LN(-LN(1-(1/B89))) -> 2.049508828 | K89: =D89*(C89^((E89*J89)+F89-1))*EXP((G89*J89)+H89) -> 14.57256582 | L89: 9.681218221 | N89: 64 | O89: =N89*$O$23 -> 32 | P89: 1056 | Q89: 162
A90: =RAND() -> 0.3498458142 | B90: =IF($B$13="exact vlaue",$B$15,(IF(A90<=$B$17,($B$14+(SQRT(A90*($B$16-$B$14)*($B$15-$B$14)))),($B$16+((SQRT(A90)-1)*(SQRT(($B$16-$B$14)*($B$16-$B$15)))))))) -> 20.86516262 | C90: =IF($C$13="exact value",$C$15,(RANDBETWEEN(($C$14*1000),($C$16*1000))/1000)) -> 0.566 | D90: =IF($D$13="exact value",$D$15,(RANDBETWEEN(($D$14*1000),($D$16*1000))/1000)) -> 0.718 | E90: =IF($E$13="exact value",$E$15,(RANDBETWEEN(($E$14*1000),($E$16*1000))/1000)) -> -0.022 | F90: =IF($F$13="exact value",$F$15,(RANDBETWEEN(($F$14*1000),($F$16*1000))/1000)) -> 0.314 | G90: =IF($G$13="exact value",$G$15,(RANDBETWEEN(($G$14*1000),($G$16*1000))/1000)) -> 0.313 | H90: =IF($H$13="exact value",$H$15,(RANDBETWEEN(($H$14*1000),($H$16*1000))/1000)) -> 2.522 | J90: 3.013624745 | K90: 35.23918455 | L90: 6.194063855 | N90: 65 | O90: 32.5 | P90: 977 | Q90: 155
A91: 0.5526560682 | B91: 24.26243769 | C91: 0.526 | D91: 0.681 | E91: -0.022 | F91: 0.314 | G91: 0.313 | H91: 2.522 | J91: 3.167958474 | K91: 37.14679184 | L91: 14.3764362 | N91: 66 | O91: 33 | P91: =COUNTIF($K$25:$K$100500,"<="&O91)-COUNTIF($K$25:$K$100500,"<="&O90) -> 949 | Q91: =COUNTIF($L$25:$L$100500,"<="&O91)-COUNTIF($L$25:$L$100500,"<="&O90) -> 123
A92: 0.4496180662 | B92: 22.63295331 | C92: 0.85 | D92: 0.695 | E92: -0.022 | F92: 0.314 | G92: 0.313 | H92: 2.522 | J92: 3.096897446 | K92: 25.79153019 | L92: 9.330214532 | N92: 67 | O92: 33.5 | P92: 884 | Q92: 112
A93: 0.03496611834 | B93: 7.090637413 | C93: 0.625 | D93: 0.741 | E93: -0.022 | F93: 0.314 | G93: 0.313 | H93: 2.522 | J93: 1.883726757 | K93: 23.42379055 | L93: 15.41306113 | N93: 68 | O93: 34 | P93: 832 | Q93: 92
A94: 0.1965476862 | B94: 9.956658226 | C94: 0.751 | D94: 0.409 | E94: -0.022 | F94: 0.314 | G94: 0.313 | H94: 2.522 | J94: 2.245786093 | K94: 12.6983813 | L94: 12.38072525 | N94: 69 | O94: 34.5 | P94: 720 | Q94: 87
A95: 0.884587359 | B95: 28.67009956 | C95: 0.87 | D95: 0.654 | E95: -0.022 | F95: 0.314 | G95: 0.313 | H95: 2.522 | J95: 3.338156089 | K95: 25.73767917 | L95: 32.63308878 | N95: 70 | O95: 35 | P95: 737 | Q95: 69
A96: 0.3312565891 | B96: 20.5089859 | C96: 0.804 | D96: 0.561 | E96: -0.022 | F96: 0.314 | G96: 0.313 | H96: 2.522 | J96: 2.995973265 | K96: 21.02556865 | L96: 12.89989747 | N96: 71 | O96: 35.5 | P96: 656 | Q96: 55
A97: 0.3390082869 | B97: 20.65869592 | C97: 0.89 | D97: 0.493 | E97: -0.022 | F97: 0.314 | G97: 0.313 | H97: 2.522 | J97: 3.003430634 | K97: 17.15809216 | L97: 29.33316563 | N97: 72 | O97: 36 | P97: 588 | Q97: 57
A98: 0.7107081755 | B98: 26.49015808 | C98: 0.892 | D98: 0.723 | E98: -0.022 | F98: 0.314 | G98: 0.313 | H98: 2.522 | J98: 3.257594544 | K98: 27.21788133 | L98: 8.629547011 | N98: 73 | O98: 36.5 | P98: 599 | Q98: 55
A99: 0.5500276447 | B99: 24.22286093 | C99: 0.876 | D99: 0.731 | E99: -0.022 | F99: 0.314 | G99: 0.313 | H99: 2.522 | J99: 3.166291075 | K99: 27.10581525 | L99: 7.006642414 | N99: 74 | O99: 37 | P99: 505 | Q99: 37
A100: 0.6111983131 | B100: 25.12071481 | C100: 0.969 | D100: 0.309 | E100: -0.022 | F100: 0.314 | G100: 0.313 | H100: 2.522 | J100: 3.203450656 | K100: 10.74121257 | L100: 11.46900877 | N100: 75 | O100: 37.5 | P100: 432 | Q100: 36
A101: 0.6406206398 | B101: 25.53653565 | C101: 0.774 | D101: 0.483 | E101: -0.022 | F101: 0.314 | G101: 0.313 | H101: 2.522 | J101: 3.220203217 | K101: 20.00687522 | L101: 7.760297364 | N101: 76 | O101: 38 | P101: 436 | Q101: 27
A102: 0.9607711458 | B102: 29.55702022 | C102: 0.958 | D102: 0.754 | E102: -0.022 | F102: 0.314 | G102: 0.313 | H102: 2.522 | J102: 3.369161401 | K102: 27.84906864 | L102: 14.77642539 | N102: 77 | O102: 38.5 | P102: 385 | Q102: 16
A103: 0.1418575199 | B103: 9.210960696 | C103: 0.807 | D103: 0.405 | E103: -0.022 | F103: 0.314 | G103: 0.313 | H103: 2.522 | J103: 2.163482299 | K103: 11.61860916 | L103: 9.919752574 | N103: 78 | O103: 39 | P103: 359 | Q103: 16
A104: 0.1789357297 | B104: 9.729372708 | C104: 0.721 | D104: 0.565 | E104: -0.022 | F104: 0.314 | G104: 0.313 | H104: 2.522 | J104: 2.221411532 | K104: 17.93511361 | L104: 22.41534429 | N104: 79 | O104: 39.5 | P104: 344 | Q104: 16
A105: 0.1692031574 | B105: 9.598955825 | C105: 0.623 | D105: 0.503 | E105: -0.022 | F105: 0.314 | G105: 0.313 | H105: 2.522 | J105: 2.207151792 | K105: 17.69482758 | L105: 4.806554409 | N105: 80 | O105: 40 | P105: 292 | Q105: 14
A106: 0.0140101484 | B106: 6.323355035 | C106: 0.789 | D106: 0.556 | E106: -0.022 | F106: 0.314 | G106: 0.313 | H106: 2.522 | J106: 1.759411297 | K106: 14.25997012 | L106: 19.15985623 | N106: 81 | O106: 40.5 | P106: 277 | Q106: 1
A107: 0.6108634486 | B107: 25.11592528 | C107: 0.885 | D107: 0.704 | E107: -0.022 | F107: 0.314 | G107: 0.313 | H107: 2.522 | J107: 3.203256052 | K107: 26.20783917 | L107: 9.480398019 | N107: 82 | O107: 41 | P107: 242 | Q107: 4
A108: 0.5732953005 | B108: 24.5699921 | C108: 0.998 | D108: 0.357 | E108: -0.022 | F108: 0.314 | G108: 0.313 | H108: 2.522 | J108: 3.180822061 | K108: 12.05032075 | L108: 26.58052103 | N108: 83 | O108: 41.5 | P108: 211 | Q108: 3
A109: 0.3488079194 | B109: 20.84552936 | C109: 0.819 | D109: 0.305 | E109: -0.022 | F109: 0.314 | G109: 0.313 | H109: 2.522 | J109: 3.01265983 | K109: 11.33309691 | L109: 13.86219218 | N109: 84 | O109: 42 | P109: 182 | Q109: 2
A110: 0.6521065671 | B110: 25.6962658 | C110: 0.847 | D110: 0.484 | E110: -0.022 | F110: 0.314 | G110: 0.313 | H110: 2.522 | J110: 3.226564514 | K110: 18.76409219 | L110: 30.05358271 | N110: 85 | O110: 42.5 | P110: 158 | Q110: 8
A111: 0.6983354524 | B111: 26.32535047 | C111: 0.568 | D111: 0.487 | E111: -0.022 | F111: 0.314 | G111: 0.313 | H111: 2.522 | J111: 3.251231618 | K111: 25.75496222 | L111: 10.54804139 | N111: 86 | O111: 43 | P111: 140 | Q111: 1
A112: 0.5960928634 | B112: 24.90334153 | C112: 0.739 | D112: 0.67 | E112: -0.022 | F112: 0.314 | G112: 0.313 | H112: 2.522 | J112: 3.194580113 | K112: 28.50754217 | L112: 11.54728821 | N112: 87 | O112: 43.5 | P112: 115 | Q112: 2
A113: 0.7352476704 | B113: 26.81283934 | C113: 0.632 | D113: 0.641 | E113: -0.022 | F113: 0.314 | G113: 0.313 | H113: 2.522 | J113: 3.269936629 | K113: 31.45495466 | L113: 9.879406494 | N113: 88 | O113: 44 | P113: 90 | Q113: 0
A114: 0.1134789238 | B114: 8.766280057 | C114: 0.743 | D114: 0.751 | E114: -0.022 | F114: 0.314 | G114: 0.313 | H114: 2.522 | J114: 2.110963111 | K114: 22.51001329 | L114: 13.99785465 | N114: 89 | O114: 44.5 | P114: 74 | Q114: 0
A115: 0.3224562714 | B115: 20.33688439 | C115: 0.959 | D115: 0.727 | E115: -0.022 | F115: 0.314 | G115: 0.313 | H115: 2.522 | J115: 2.987331221 | K115: 23.79977398 | L115: 7.154648691 | N115: 90 | O115: 45 | P115: 59 | Q115: 2
A116: 0.7294441784 | B116: 26.73701876 | C116: 0.909 | D116: 0.519 | E116: -0.022 | F116: 0.314 | G116: 0.313 | H116: 2.522 | J116: 3.267050267 | K116: 19.31813596 | L116: 19.32098334 | N116: 91 | O116: 45.5 | P116: 37 | Q116: 0
A117: 0.4908767518 | B117: 23.30579321 | C117: 0.662 | D117: 0.425 | E117: -0.022 | F117: 0.314 | G117: 0.313 | H117: 2.522 | J117: 3.126854334 | K117: 19.22829213 | L117: 7.341993752 | N117: 92 | O117: 46 | P117: 34 | Q117: 0
A118: 0.5901032877 | B118: 24.81638761 | C118: 0.724 | D118: 0.768 | E118: -0.022 | F118: 0.314 | G118: 0.313 | H118: 2.522 | J118: 3.191009549 | K118: 33.15012369 | L118: 9.134855306 | N118: 93 | O118: 46.5 | P118: 24 | Q118: 0
A119: 0.8304918378 | B119: 28.01690396 | C119: 0.792 | D119: 0.652 | E119: -0.022 | F119: 0.314 | G119: 0.313 | H119: 2.522 | J119: 3.314690432 | K119: 27.35128843 | L119: 12.80767722 | N119: 94 | O119: 47 | P119: 14 | Q119: 0
A120: 0.2076202306 | B120: 17.82804513 | C120: 0.889 | D120: 0.768 | E120: -0.022 | F120: 0.314 | G120: 0.313 | H120: 2.522 | J120: 2.852048659 | K120: 25.50364962 | L120: 13.97753773 | N120: 95 | O120: 47.5 | P120: 6 | Q120: 0
A121: 0.2339099721 | B121: 18.45389308 | C121: 0.944 | D121: 0.715 | E121: -0.022 | F121: 0.314 | G121: 0.313 | H121: 2.522 | J121: 2.887548365 | K121: 22.95473938 | L121: 19.16527831 | N121: 96 | O121: =N121*$O$23 -> 48 | P121: 3 | Q121: 0
A122: 0.4792263174 | B122: 23.11876333 | C122: 0.946 | D122: 0.421 | E122: -0.022 | F122: 0.314 | G122: 0.313 | H122: 2.522 | J122: 3.118616878 | K122: 14.51082699 | L122: 17.95137741 | N122: 97 | O122: 48.5 | P122: 1 | Q122: 0
A123: 0.6121621898 | B123: 25.1344937 | C123: 0.531 | D123: 0.324 | E123: -0.022 | F123: 0.314 | G123: 0.313 | H123: 2.522 | J123: 3.2040103 | K123: 17.75550143 | L123: 9.728220971 | N123: 98 | O123: 49 | P123: 1 | Q123: 0
A124: 0.5495651266 | B124: 24.21588692 | C124: 0.701 | D124: 0.73 | E124: -0.022 | F124: 0.314 | G124: 0.313 | H124: 2.522 | J124: 3.165996966 | K124: 32.03053556 | L124: 11.86303246 | N124: 99 | O124: 49.5 | P124: 0 | Q124: 0
A125: 0.5229929046 | B125: 23.81017216 | C125: 0.512 | D125: 0.513 | E125: -0.022 | F125: 0.314 | G125: 0.313 | H125: 2.522 | J125: 3.148736443 | K125: 28.37979467 | L125: 8.686966651 | N125: 100 | O125: 50 | P125: 0 | Q125: 0
A126: 0.1295918871 | B126: 9.024796379 | C126: 0.977 | D126: 0.443 | E126: -0.022 | F126: 0.314 | G126: 0.313 | H126: 2.522 | J126: 2.141830722 | K126: 10.97111828 | L126: 7.787852836
A127: 0.560760708 | B127: 24.38388215 | C127: 0.793 | D127: 0.624 | E127: -0.022 | F127: 0.314 | G127: 0.313 | H127: 2.522 | J127: 3.17305773 | K127: 24.99955674 | L127: 17.35867529
A128: 0.7220938554 | B128: 26.64055512 | C128: 0.798 | D128: 0.545 | E128: -0.022 | F128: 0.314 | G128: 0.313 | H128: 2.522 | J128: 3.263365973 | K128: 22.36411753 | L128: 18.34725426
A129: 0.5318069278 | B129: 23.94586688 | C129: 0.894 | D129: 0.725 | E129: -0.022 | F129: 0.314 | G129: 0.313 | H129: 2.522 | J129: 3.154542602 | K129: 26.37536415 | L129: 14.00031302
A130: 0.7572293069 | B130: 27.09734308 | C130: 0.992 | D130: 0.382 | E130: -0.022 | F130: 0.314 | G130: 0.313 | H130: 2.522 | J130: 3.280693509 | K130: 13.36463704 | L130: 4.108379401
A131: 0.688940775 | B131: 26.19923368 | C131: 0.984 | D131: 0.336 | E131: -0.022 | F131: 0.314 | G131: 0.313 | H131: 2.522 | J131: 3.246334976 | K131: 11.70101318 | L131: 14.40709334
A132: 0.2165322168 | B132: 18.04442034 | C132: 0.98 | D132: 0.404 | E132: -0.022 | F132: 0.314 | G132: 0.313 | H132: 2.522 | J132: 2.864465142 | K132: 12.52052609 | L132: 16.85943026
A133: 0.261598445 | B133: 19.076069 | C133: 0.595 | D133: 0.601 | E133: -0.022 | F133: 0.314 | G133: 0.313 | H133: 2.522 | J133: 2.921632567 | K133: 27.57333846 | L133: 6.409739655
A134: 0.543650017 | B134: 24.12643666 | C134: 0.893 | D134: 0.35 | E134: -0.022 | F134: 0.314 | G134: 0.313 | H134: 2.522 | J134: 3.162216967 | K134: 12.77459612 | L134: 19.96089008
A135: 0.7988533828 | B135: 27.62498237 | C135: 0.637 | D135: 0.479 | E135: -0.022 | F135: 0.314 | G135: 0.313 | H135: 2.522 | J135: 3.300341884 | K135: 23.59591053 | L135: 7.595248566
A136: 0.01233477746 | B136: 6.241711393 | C136: 0.83 | D136: 0.498 | E136: -0.022 | F136: 0.314 | G136: 0.313 | H136: 2.522 | J136: 1.745221211 | K136: 12.25673065 | L136: 13.97839568
A137: 0.07120030745 | B137: 7.983293219 | C137: 0.96 | D137: 0.421 | E137: -0.022 | F137: 0.314 | G137: 0.313 | H137: 2.522 | J137: 2.011181975 | K137: 10.13695453 | L137: 12.81361466
A138: 0.9611206941 | B138: 29.56100691 | C138: 0.883 | D138: 0.518 | E138: -0.022 | F138: 0.314 | G138: 0.313 | H138: 2.522 | J138: 3.369298621 | K138: 20.35634774 | L138: 10.5094945
A139: 0.2677449299 | B139: 19.20964714 | C139: 0.74 | D139: 0.439 | E139: -0.022 | F139: 0.314 | G139: 0.313 | H139: 2.522 | J139: 2.928801146 | K139: 17.14005769 | L139: 33.82202258
A140: 0.9252550514 | B140: 29.1480981 | C140: 0.749 | D140: 0.719 | E140: -0.022 | F140: 0.314 | G140: 0.313 | H140: 2.522 | J140: 3.354985506 | K140: 31.87474238 | L140: 33.2384941
A141: 0.045511593 | B141: 7.385151803 | C141: 0.985 | D141: 0.45 | E141: -0.022 | F141: 0.314 | G141: 0.313 | H141: 2.522 | J141: 1.92760526 | K141: 10.35885422 | L141: 12.1245099
A142: 0.7742461125 | B142: 27.3147632 | C142: 0.878 | D142: 0.316 | E142: -0.022 | F142: 0.314 | G142: 0.313 | H142: 2.522 | J142: 3.288836687 | K142: 12.15889879 | L142: 11.83780538
A143: 0.7151738099 | B143: 26.54928863 | C143: 0.984 | D143: 0.624 | E143: -0.022 | F143: 0.314 | G143: 0.313 | H143: 2.522 | J143: 3.259867632 | K143: 21.8227972 | L143: 7.784369038
A144: 0.8814347032 | B144: 28.63258942 | C144: 0.809 | D144: 0.484 | E144: -0.022 | F144: 0.314 | G144: 0.313 | H144: 2.522 | J144: 3.336823363 | K144: 20.12005634 | L144: 16.43514272
A145: 0.6818438559 | B145: 26.1033915 | C145: 0.764 | D145: 0.583 | E145: -0.022 | F145: 0.314 | G145: 0.313 | H145: 2.522 | J145: 3.242597679 | K145: 24.56274016 | L145: 11.2194403
A146: 0.2805914108 | B146: 19.48396903 | C146: 0.731 | D146: 0.622 | E146: -0.022 | F146: 0.314 | G146: 0.313 | H146: 2.522 | J146: 2.943363588 | K146: 24.62347462 | L146: 31.17492361
A147: 0.4770048806 | B147: 23.08284444 | C147: 0.946 | D147: 0.377 | E147: -0.022 | F147: 0.314 | G147: 0.313 | H147: 2.522 | J147: 3.117027084 | K147: 12.98776638 | L147: 21.98204015
A148: 0.4152675079 | B148: 22.04882244 | C148: 0.867 | D148: 0.308 | E148: -0.022 | F148: 0.314 | G148: 0.313 | H148: 2.522 | J148: 3.070141668 | K148: 11.16564589 | L148: 26.02496674
A149: 0.2742783279 | B149: 19.34996342 | C149: 0.749 | D149: 0.34 | E149: -0.022 | F149: 0.314 | G149: 0.313 | H149: 2.522 | J149: 2.936276372 | K149: 13.18631988 | L149: 12.63694792
A150: 0.4472830864 | B150: 22.59396978 | C150: 0.574 | D150: 0.655 | E150: -0.022 | F150: 0.314 | G150: 0.313 | H150: 2.522 | J150: 3.095133958 | K150: 32.66399491 | L150: 12.20625329
A151: 0.8076213692 | B151: 27.73436152 | C151: 0.593 | D151: 0.687 | E151: -0.022 | F151: 0.314 | G151: 0.313 | H151: 2.522 | J151: 3.304367098 | K151: 35.77719946 | L151: 12.42223758
A152: 0.8459042376 | B152: 28.20511996 | C152: 0.907 | D152: 0.709 | E152: -0.022 | F152: 0.314 | G152: 0.313 | H152: 2.522 | J152: 3.32150865 | K152: 26.8919702 | L152: 14.12814287
A153: 0.08411272299 | B153: 8.242543812 | C153: 0.539 | D153: 0.542 | E153: -0.022 | F153: 0.314 | G153: 0.313 | H153: 2.522 | J153: =-LN(-LN(1-(1/B153))) -> 2.045337656 | K153: =D153*(C153^((E153*J153)+F153-1))*EXP((G153*J153)+H153) -> 20.11542324 | L153: 14.16642866
A154: =RAND() -> 0.5207079745 | B154: =IF($B$13="exact vlaue",$B$15,(IF(A154<=$B$17,($B$14+(SQRT(A154*($B$16-$B$14)*($B$15-$B$14)))),($B$16+((SQRT(A154)-1)*(SQRT(($B$16-$B$14)*($B$16-$B$15)))))))) -> 23.77480867 | C154: =IF($C$13="exact value",$C$15,(RANDBETWEEN(($C$14*1000),($C$16*1000))/1000)) -> 0.51 | D154: =IF($D$13="exact value",$D$15,(RANDBETWEEN(($D$14*1000),($D$16*1000))/1000)) -> 0.703 | E154: =IF($E$13="exact value",$E$15,(RANDBETWEEN(($E$14*1000),($E$16*1000))/1000)) -> -0.022 | F154: =IF($F$13="exact value",$F$15,(RANDBETWEEN(($F$14*1000),($F$16*1000))/1000)) -> 0.314 | G154: =IF($G$13="exact value",$G$15,(RANDBETWEEN(($G$14*1000),($G$16*1000))/1000)) -> 0.313 | H154: =IF($H$13="exact value",$H$15,(RANDBETWEEN(($H$14*1000),($H$16*1000))/1000)) -> 2.522 | J154: 3.14721774 | K154: 38.98654908 | L154: 13.69731619
A155: 0.7374777444 | B155: 26.84189485 | C155: 0.974 | D155: 0.403 | E155: -0.022 | F155: 0.314 | G155: 0.313 | H155: 2.522 | J155: 3.271040518 | K155: 14.25324672 | L155: 14.31031685
A156: 0.2368479631 | B156: 18.52159855 | C156: 0.598 | D156: 0.676 | E156: -0.022 | F156: 0.314 | G156: 0.313 | H156: 2.522 | J156: 2.891314287 | K156: 30.59514941 | L156: 12.09141328
A157: 0.8137588163 | B157: 27.81057225 | C157: 0.571 | D157: 0.595 | E157: -0.022 | F157: 0.314 | G157: 0.313 | H157: 2.522 | J157: 3.307162146 | K157: 31.91671564 | L157: 9.96069653
A158: 0.4771612647 | B158: 23.08537578 | C158: 0.863 | D158: 0.421 | E158: -0.022 | F158: 0.314 | G158: 0.313 | H158: 2.522 | J158: 3.117139206 | K158: 15.54473435 | L158: 10.8806237
A159: =RAND() -> 0.1371896727 | B159: 9.141099985 | C159: 0.961 | D159: 0.625 | E159: -0.022 | F159: 0.314 | G159: 0.313 | H159: 2.522 | J159: 2.155412223 | K159: 15.73388151 | L159: 21.03015365
A160: =RAND() -> 0.2222307333 | B160: 18.18044762 | C160: 0.737 | D160: 0.509 | E160: -0.022 | F160: 0.314 | G160: 0.313 | H160: 2.522 | J160: 2.872192699 | K160: 19.57624555 | L160: 14.27214644
A161: 0.8011122898 | B161: 27.65321902 | C161: 0.979 | D161: 0.532 | E161: -0.022 | F161: 0.314 | G161: 0.313 | H161: 2.522 | J161: 3.301382562 | K161: 18.92193532 | L161: 18.13017507
A162: 0.7616034388 | B162: 27.15346175 | C162: 0.826 | D162: 0.53 | E162: -0.022 | F162: 0.314 | G162: 0.313 | H162: 2.522 | J162: 3.282801717 | K162: 21.31861632 | L162: 20.31625191
A163: 0.6712013526 | B163: 25.95872732 | C163: 0.882 | D163: 0.314 | E163: -0.022 | F163: 0.314 | G163: 0.313 | H163: 2.522 | J163: 3.236930011 | K163: 11.84463281 | L163: 6.022852526
A164: 0.04454764092 | B164: 7.359757427 | C164: 0.626 | D164: 0.689 | E164: -0.022 | F164: 0.314 | G164: 0.313 | H164: 2.522 | J164: 1.923897061 | K164: 22.03907735 | L164: 8.890359576
A165: 0.1041614558 | B165: 8.608348927 | C165: 0.908 | D165: 0.779 | E165: -0.022 | F165: 0.314 | G165: 0.313 | H165: 2.522 | J165: 2.091624652 | K165: 20.03702438 | L165: 22.08983387
A166: 0.8099231784 | B166: 27.76297768 | C166: 0.814 | D166: 0.437 | E166: -0.022 | F166: 0.314 | G166: 0.313 | H166: 2.522 | J166: 3.305417519 | K166: 17.90203061 | L166: 9.323565481
A167: 0.6227466647 | B167: 25.28509401 | C167: 0.77 | D167: 0.394 | E167: -0.022 | F167: 0.314 | G167: 0.313 | H167: 2.522 | J167: 3.210106745 | K167: 16.33178915 | L167: 16.35477633
A168: 0.8727997405 | B168: 28.5295062 | C168: 0.741 | D168: 0.385 | E168: -0.022 | F168: 0.314 | G168: 0.313 | H168: 2.522 | J168: 3.333151665 | K168: 17.08800967 | L168: 15.54194715
A169: 0.2258480672 | B169: 18.26589228 | C169: 0.564 | D169: 0.394 | E169: -0.022 | F169: 0.314 | G169: 0.313 | H169: 2.522 | J169: 2.87701634 | K169: 18.54542994 | L169: 15.54149178
A170: 0.5603680767 | B170: 24.37801905 | C170: 0.939 | D170: 0.473 | E170: -0.022 | F170: 0.314 | G170: 0.313 | H170: 2.522 | J170: 3.172812145 | K170: 16.67649644 | L170: 21.70656814
A171: 0.09653805894 | B171: 8.473795815 | C171: 0.924 | D171: 0.515 | E171: -0.022 | F171: 0.314 | G171: 0.313 | H171: 2.522 | J171: 2.074847748 | K171: 13.00938038 | L171: 8.246966386
A172: 0.6770451428 | B172: 26.03830312 | C172: 0.959 | D172: 0.525 | E172: -0.022 | F172: 0.314 | G172: 0.313 | H172: 2.522 | J172: 3.240051615 | K172: 18.60596282 | L172: 8.777729616
A173: 0.1694022952 | B173: 9.60166132 | C173: 1 | D173: 0.336 | E173: -0.022 | F173: 0.314 | G173: 0.313 | H173: 2.522 | J173: 2.207449689 | K173: 8.350217895 | L173: 20.89809765
A174: =RAND() -> 0.5850839656 | B174: 24.74317894 | C174: 0.805 | D174: 0.535 | E174: -0.022 | F174: 0.314 | G174: 0.313 | H174: 2.522 | J174: 3.187993483 | K174: 21.29280296 | L174: 19.42079401
A175: 0.9566232743 | B175: 29.50965715 | C175: 0.703 | D175: 0.629 | E175: -0.022 | F175: 0.314 | G175: 0.313 | H175: 2.522 | J175: 3.367529745 | K175: 29.37857733 | L175: 4.296095829
A176: 0.3700684605 | B176: 21.242049 | C176: 0.556 | D176: 0.399 | E176: -0.022 | F176: 0.314 | G176: 0.313 | H176: 2.522 | J176: 3.03196925 | K176: 19.96617452 | L176: 12.31201229
A177: 0.9691366061 | B177: 29.65223241 | C177: 0.86 | D177: 0.535 | E177: -0.022 | F177: 0.314 | G177: 0.313 | H177: 2.522 | J177: 3.372433425 | K177: 21.47174137 | L177: 12.30642649
A178: 0.616614041 | B178: 25.19799388 | C178: 0.625 | D178: 0.6 | E178: -0.022 | F178: 0.314 | G178: 0.313 | H178: 2.522 | J178: 3.206585383 | K178: 29.09058085 | L178: 8.931147059
A179: 0.8590983824 | B179: 28.36488876 | C179: 0.592 | D179: 0.527 | E179: -0.022 | F179: 0.314 | G179: 0.313 | H179: 2.522 | J179: 3.327260088 | K179: 27.684899 | L179: 14.82971216
A180: 0.05586303486 | B180: 7.642513833 | C180: 0.536 | D180: 0.328 | E180: -0.022 | F180: 0.314 | G180: 0.313 | H180: 2.522 | J180: 1.964427822 | K180: 11.90406116 | L180: 13.13336265
A181: 0.5905440073 | B181: 24.82280077 | C181: 0.71 | D181: 0.344 | E181: -0.022 | F181: 0.314 | G181: 0.313 | H181: 2.522 | J181: 3.191273327 | K181: 15.07064551 | L181: 20.51134624
A182: =RAND() -> 0.5790288485 | B182: 24.65444362 | C182: 0.777 | D182: 0.457 | E182: -0.022 | F182: 0.314 | G182: 0.313 | H182: 2.522 | J182: 3.184325506 | K182: 18.66007098 | L182: 10.93049903
A183: =RAND() -> 0.08066610825 | B183: 8.175415489 | C183: 0.864 | D183: 0.74 | E183: -0.022 | F183: 0.314 | G183: 0.313 | H183: 2.522 | J183: 2.03660528 | K183: 19.39825892 | L183: 17.45738468
A184: 0.9140339466 | B184: 29.01727554 | C184: 0.995 | D184: 0.697 | E184: -0.022 | F184: 0.314 | G184: 0.313 | H184: 2.522 | J184: 3.350407578 | K184: 24.86635728 | L184: 18.70897121
A185: 0.0366621414 | B185: 7.140739983 | C185: 0.572 | D185: 0.576 | E185: -0.022 | F185: 0.314 | G185: 0.313 | H185: 2.522 | J185: 1.891329073 | K185: 19.46840225 | L185: 10.93917652
A186: 0.8616367958 | B186: 28.39548552 | C186: 0.523 | D186: 0.497 | E186: -0.022 | F186: 0.314 | G186: 0.313 | H186: 2.522 | J186: 3.328357761 | K186: 28.69491011 | L186: 12.86958281
A187: 0.2817985169 | B187: 19.50941957 | C187: 0.682 | D187: 0.501 | E187: -0.022 | F187: 0.314 | G187: 0.313 | H187: 2.522 | J187: 2.944703942 | K187: 20.90288593 | L187: 30.63240438
A188: 0.6116599713 | B188: 25.1273157 | C188: 0.615 | D188: 0.533 | E188: -0.022 | F188: 0.314 | G188: 0.313 | H188: 2.522 | J188: 3.203718797 | K188: 26.1351437 | L188: 14.49570906
A189: 0.886783934 | B189: 28.6961948 | C189: 0.861 | D189: 0.61 | E189: -0.022 | F189: 0.314 | G189: 0.313 | H189: 2.522 | J189: 3.3390822 | K189: 24.20351208 | L189: 29.56157148
A190: 0.3572599058 | B190: 21.00457192 | C190: 0.786 | D190: 0.343 | E190: -0.022 | F190: 0.314 | G190: 0.313 | H190: 2.522 | J190: 3.020449625 | K190: 13.17820984 | L190: 6.369458997
A191: 0.8031120614 | B191: 27.67818323 | C191: 0.755 | D191: 0.705 | E191: -0.022 | F191: 0.314 | G191: 0.313 | H191: 2.522 | J191: 3.30230173 | K191: 30.54717673 | L191: 9.028902975
A192: 0.7439536022 | B192: 26.92602033 | C192: 0.67 | D192: 0.473 | E192: -0.022 | F192: 0.314 | G192: 0.313 | H192: 2.522 | J192: 3.274229793 | K192: 22.23681544 | L192: 15.56166499
A193: 0.6860145896 | B193: 26.15977634 | C193: 0.707 | D193: 0.387 | E193: -0.022 | F193: 0.314 | G193: 0.313 | H193: 2.522 | J193: 3.244798057 | K193: 17.3032686 | L193: 13.81002227
A194: 0.4999077515 | B194: 23.44924988 | C194: 0.987 | D194: 0.317 | E194: -0.022 | F194: 0.314 | G194: 0.313 | H194: 2.522 | J194: 3.133126991 | K194: 10.63014324 | L194: 14.49123232
A195: 0.1803228917 | B195: 9.747669056 | C195: 0.558 | D195: 0.473 | E195: -0.022 | F195: 0.314 | G195: 0.313 | H195: 2.522 | J195: 2.223395851 | K195: 18.13800653 | L195: 14.91479614
A196: 0.736346238 | B196: 26.82715801 | C196: 0.845 | D196: 0.514 | E196: -0.022 | F196: 0.314 | G196: 0.313 | H196: 2.522 | J196: 3.270480782 | K196: 20.24244192 | L196: 7.134228089
A197: =RAND() -> 0.8111389522 | B197: 27.7780758 | C197: 0.778 | D197: 0.758 | E197: -0.022 | F197: 0.314 | G197: 0.313 | H197: 2.522 | J197: 3.305971286 | K197: 32.14190112 | L197: 11.27138696
A198: 0.8664361204 | B198: 28.45321126 | C198: 0.854 | D198: 0.514 | E198: -0.022 | F198: 0.314 | G198: 0.313 | H198: 2.522 | J198: 3.330425423 | K198: 20.46512332 | L198: 12.78048988
A199: 0.9398975748 | B199: 29.31762245 | C199: 0.949 | D199: 0.743 | E199: -0.022 | F199: 0.314 | G199: 0.313 | H199: 2.522 | J199: 3.360886731 | K199: 27.56862832 | L199: 14.69215156
A200: 0.5670461507 | B200: 24.47746369 | C200: 0.626 | D200: 0.547 | E200: -0.022 | F200: 0.314 | G200: 0.313 | H200: 2.522 | J200: 3.176969401 | K200: 26.23643491 | L200: 12.23813793
A201: 0.2447325967 | B201: 18.70125036 | C201: 0.732 | D201: 0.53 | E201: -0.022 | F201: 0.314 | G201: 0.313 | H201: 2.522 | J201: 2.901238665 | K201: 20.67937052 | L201: 14.09665344
A202: 0.5024524003 | B202: 23.48943695 | C202: 0.503 | D202: 0.314 | E202: -0.022 | F202: 0.314 | G202: 0.313 | H202: 2.522 | J202: 3.13487714 | K202: 17.52522789 | L202: 18.03620918
A203: 0.0118253511 | B203: 6.21579969 | C203: 0.739 | D203: 0.361 | E203: -0.022 | F203: 0.314 | G203: 0.313 | H203: 2.522 | J203: 1.740674986 | K203: 9.650620914 | L203: 6.550888523
A204: 0.561333535 | B204: 24.3924324 | C204: 0.864 | D204: 0.558 | E204: -0.022 | F204: 0.314 | G204: 0.313 | H204: 2.522 | J204: 3.173415763 | K204: 20.95484266 | L204: 10.07865603
A205: 0.2439155656 | B205: 18.68276999 | C205: 0.708 | D205: 0.365 | E205: -0.022 | F205: 0.314 | G205: 0.313 | H205: 2.522 | J205: 2.900222303 | K205: 14.59716995 | L205: 12.12539071
A206: 0.03181898117 | B206: 6.994335139 | C206: 0.54 | D206: 0.434 | E206: -0.022 | F206: 0.314 | G206: 0.313 | H206: 2.522 | J206: 1.868949357 | K206: 15.18502509 | L206: 15.98449064
... 4294 more rows

Sheet National Estimate (Fixed)
A1: SC120020/1 Appendix C_Sewer Capacity-MC Analysis Tool (v0.2-March 2015).xls
A2: Monte Carlo Analysis of sewer capacity after WBSWFR/TN3 Sewer Capacity and Infiltration Analysis (Horritt et al., 2009)
A3: National estimate of sewer capacity- fixed MC samples
A6: Input: Ranges for MC sampling
A7: Table 1: range of input variables for MC analysis (after Horrit et al., 2009)
A9: range of variables-FIXED here
B10: SOP (years) | C10: tcrit (hours) | D10: PR
A11: min | B11: 5 | C11: 0.5 | D11: 0.3
A12: mode | B12: 10
A13: max | B13: 30 | C13: 2 | D13: 0.8
A14: ymode | B14: =((B12-B11)^2)/((B13-B11)*(B12-B11)) -> 0.2
A17: Calculations: Monte Carlo Analysis of sewer capacity | S17: Results: Frequency Distribution and summary statistics
A18: Table 2: Randomly generated MC samples (fixed) | J18: Table 3: Calculated sewer capacity for each set of MC samples | M18: Table 4: Frequency distribution of sewer capacity | T18: Table 5: Sewer capacity estimate
A20: triangular distribution | C20: uniform distribution | E20: DDF-normal distribution | J20: National Estimate | M20: bin interval | O20: 0.5 | T20: Minimum estimate | U20: =MIN(K22:K15021) -> 3.425418129
A21: y (rand) | B21: SOP | C21: tcrit | D21: PR | E21: C | F21: D1 | G21: E | H21: F | J21: y | K21: infiltration rate (mm/hr) | M21: bin nr | N21: bins | O21: count | T21: maximum estimate | U21: =MAX(K22:K15021) -> 42.23756346
A22: 0.066305298 | B22: 7.878916854 | C22: 1.378 | D22: 0.371 | E22: -0.02747072036 | F22: 0.3516735762 | G22: 0.3099442239 | H22: 2.320497149 | J22: =-LN(-LN(1-(1/B22))) -> 1.997093306 | K22: =D22*(C22^((E22*J22)+F22-1))*EXP((G22*J22)+H22) -> 5.598317256 | M22: 0 | N22: =M22*$O$20 -> 0 | O22: =N22 -> 0 | T22: Modal estimate | U22: =INDEX($N$22:$O$122,MATCH(MAX($O$22:$O$122),$O$22:$O$122,0),1)-($O$20/2) -> 10.75
A23: 0.2136270309 | B23: 17.97438266 | C23: 0.732 | D23: 0.596 | E23: -0.03166298689 | F23: 0.3977811207 | G23: 0.2957422199 | H23: 2.418439633 | J23: 2.860462956 | K23: 19.35629293 | M23: 1 | N23: 0.5 | O23: =COUNTIF($K$22:$K$300220,"<="&N23)-COUNTIF($K$22:$K$300220,"<="&N22) -> 0 | T23: Mean | U23: =AVERAGE(K22:K15021) -> 13.88787843
A24: 0.04478074536 | B24: 7.365923323 | C24: 1.917 | D24: 0.685 | E24: -0.02557387016 | F24: 0.4046148213 | G24: 0.2918364106 | H24: 2.335047616 | J24: 1.924798702 | K24: 8.157602767 | M24: 2 | N24: 1 | O24: 0 | T24: Standard deviation | U24: =STDEV(K22:K15021) -> 5.910416344
A25: 0.5024695788 | B25: 23.4897079 | C25: 1.616 | D25: 0.301 | E25: -0.02502190017 | F25: 0.399509494 | G25: 0.2935207167 | H25: 2.42041317 | J25: 3.13488893 | K25: 6.135350421 | M25: 3 | N25: 1.5 | O25: 0
A26: 0.565609285 | B26: 24.45611666 | C26: 0.555 | D26: 0.406 | E26: -0.02989800259 | F26: 0.3503002722 | G26: 0.2974900432 | H26: 2.458751892 | J26: 3.17607845 | K26: 18.92808196 | M26: 4 | N26: 2 | O26: 0 | S26: Figure 1: National estimate of sewer capacity frequency distribution
A27: 0.1358159845 | B27: 9.120315287 | C27: 1.56 | D27: 0.578 | E27: -0.02195088742 | F27: 0.3508101697 | G27: 0.2882068425 | H27: 2.532559871 | J27: 2.152998591 | K27: 9.926281331 | M27: 5 | N27: 2.5 | O27: 0
A28: 0.9791633377 | B28: 29.76581269 | C28: 0.729 | D28: 0.506 | E28: -0.02195684171 | F28: 0.3648118988 | G28: 0.3050495421 | H28: 2.423642649 | J28: 3.376322724 | K28: 20.01682505 | M28: 6 | N28: 3 | O28: 0
A29: 0.2387386741 | B29: 18.56494776 | C29: 1.885 | D29: 0.389 | E29: -0.02612795314 | F29: 0.3859067954 | G29: 0.2939135607 | H29: 2.394876784 | J29: 2.893718032 | K29: 6.449378153 | M29: 7 | N29: 3.5 | O29: 21
A30: 0.6466457457 | B30: 25.6205013 | C30: 1.069 | D30: 0.793 | E30: -0.02488720597 | F30: 0.3560428952 | G30: 0.3164803371 | H30: 2.345874213 | J30: 3.223552218 | K30: 21.88525175 | M30: 8 | N30: 4 | O30: 264
A31: 0.1219735432 | B31: 8.904701384 | C31: 0.739 | D31: 0.637 | E31: -0.02540622691 | F31: 0.4413090157 | G31: 0.3102034758 | H31: 2.382886789 | J31: 2.127609718 | K31: 16.07431227 | M31: 9 | N31: 4.5 | O31: 879
A32: 0.4013927651 | B32: 21.8060553 | C32: 1.524 | D32: 0.609 | E32: -0.02663480916 | F32: 0.4306938075 | G32: 0.3037300034 | H32: 2.478924261 | J32: 3.0588077 | K32: 13.98298965 | M32: 10 | N32: 5 | O32: 1657
A33: 0.3823093005 | B33: 21.4651891 | C33: 1.627 | D33: 0.442 | E33: -0.02353231214 | F33: 0.4154637752 | G33: 0.2926065119 | H33: 2.389269746 | J33: 3.042673761 | K33: 8.531486597 | M33: 11 | N33: 5.5 | O33: 2980
A34: 0.5213252887 | B34: 23.78437037 | C34: 1.956 | D34: 0.451 | E34: -0.02800027625 | F34: 0.3462865722 | G34: 0.2988947101 | H34: 2.342979202 | J34: 3.1476286 | K34: 7.314026035 | M34: 12 | N34: 6 | O34: 4554
A35: 0.8963724564 | B35: 28.80972948 | C35: 0.596 | D35: 0.609 | E35: -0.01857716822 | F35: 0.36140242 | G35: 0.313147875 | H35: 2.342178509 | J35: 3.34310155 | K35: 25.9390785 | M35: 13 | N35: 6.5 | O35: 6338
A36: 0.08312261241 | B36: 8.223402946 | C36: 1.72 | D36: 0.487 | E36: -0.026463746 | F36: 0.360268254 | G36: 0.2840650256 | H36: 2.352770941 | J36: 2.042855503 | K36: 6.279702434 | M36: 14 | N36: 7 | O36: 7674
A37: 0.7233810771 | B37: 26.65748361 | C37: 1.43 | D37: 0.668 | E37: -0.02561263353 | F37: 0.3836395416 | G37: 0.3079954293 | H37: 2.335860668 | J37: 3.264013516 | K37: 14.69249538 | M37: 15 | N37: 7.5 | O37: 8884
A38: 0.2616769475 | B38: 19.07778488 | C38: 0.587 | D38: 0.723 | E38: -0.02237298808 | F38: 0.3766549984 | G38: 0.2885314721 | H38: 2.306505628 | J38: 2.921724978 | K38: 24.33869384 | M38: 16 | N38: 8 | O38: 9639
A39: 0.7888935089 | B39: 27.50000386 | C39: 1.515 | D39: 0.479 | E39: -0.02579844303 | F39: 0.3593018063 | G39: 0.305309841 | H39: 2.445834914 | J39: 3.29572268 | K39: 11.18440484 | M39: 17 | N39: 8.5 | O39: 10357
A40: 0.05502577007 | B40: 7.622636318 | C40: 0.798 | D40: 0.437 | E40: -0.02632520458 | F40: 0.3589281591 | G40: 0.2989744973 | H40: 2.35534349 | J40: 1.961631788 | K40: 9.68237762 | M40: 18 | N40: 9 | O40: 10693
A41: 0.2318135922 | B41: 18.40532209 | C41: 0.817 | D41: 0.356 | E41: -0.02882998818 | F41: 0.3968835943 | G41: 0.2752657664 | H41: 2.409471991 | J41: 2.884837975 | K41: 10.0689269 | M41: 19 | N41: 9.5 | O41: 11395
A42: 0.1892865578 | B42: 9.864238864 | C42: 1.234 | D42: 0.722 | E42: -0.02499900322 | F42: 0.4470462358 | G42: 0.3062096187 | H42: 2.474602451 | J42: 2.235946553 | K42: 14.96214352 | M42: 20 | N42: 10 | O42: 11440
A43: 0.6831479226 | B43: 26.12103988 | C43: 1.71 | D43: 0.644 | E43: -0.03054301832 | F43: 0.4063586985 | G43: 0.3014737414 | H43: 2.312050924 | J43: 3.243286915 | K43: 11.91896321 | M43: 21 | N43: 10.5 | O43: 11634
A44: 0.09219390673 | B44: 8.394736859 | C44: 1.837 | D44: 0.466 | E44: -0.02357129652 | F44: 0.4355732457 | G44: 0.2989350401 | H44: 2.458240503 | J44: 2.06485695 | K44: 6.952374575 | M44: 22 | N44: 11 | O44: 11729
A45: 0.4297068983 | B45: 22.29720033 | C45: 1.996 | D45: 0.534 | E45: -0.02047988898 | F45: 0.2682461089 | G45: 0.2968782737 | H45: 2.580814018 | J45: 3.081606101 | K45: 10.16499012 | M45: 23 | N45: 11.5 | O45: 11668
A46: 0.7293565861 | B46: 26.73587209 | C46: 0.695 | D46: 0.754 | E46: -0.02835203739 | F46: 0.3656799634 | G46: 0.2884641979 | H46: 2.424343839 | J46: 3.267006551 | K46: 28.47111318 | M46: 24 | N46: 12 | O46: 11382
A47: 0.7206138534 | B47: 26.62107269 | C47: 0.54 | D47: 0.301 | E47: -0.02308281131 | F47: 0.3929491902 | G47: 0.2884293717 | H47: 2.371467816 | J47: 3.262620218 | K47: 12.58266219 | M47: 25 | N47: 12.5 | O47: 11475
A48: 0.891490066 | B48: 28.75199493 | C48: 1.123 | D48: 0.399 | E48: -0.02173639517 | F48: 0.4142450629 | G48: 0.3126720359 | H48: 2.424270185 | J48: 3.341059653 | K48: 11.86695959 | M48: 26 | N48: 13 | O48: 11287
A49: 0.0842651513 | B49: 8.245480536 | C49: 1.787 | D49: 0.532 | E49: -0.03141868056 | F49: 0.3693765542 | G49: 0.2882161521 | H49: 2.622940469 | J49: 2.045717939 | K49: 8.828836464 | M49: 27 | N49: 13.5 | O49: 10769
A50: 0.7909309388 | B50: 27.52563385 | C50: 1.268 | D50: 0.51 | E50: -0.03089927907 | F50: 0.3998085499 | G50: 0.2988272021 | H50: 2.527532615 | J50: 3.296671705 | K50: 14.47794434 | M50: 28 | N50: 14 | O50: 10430
A51: 0.9225108023 | B51: 29.11617756 | C51: 1.157 | D51: 0.799 | E51: -0.02405809808 | F51: 0.4389630114 | G51: 0.2837530911 | H51: 2.36685967 | J51: 3.353870429 | K51: 20.096656 | M51: 29 | N51: 14.5 | O51: 9889
A52: 0.8884665931 | B52: 28.71616289 | C52: 0.594 | D52: 0.709 | E52: -0.02735961096 | F52: 0.3792840382 | G52: 0.2999584346 | H52: 2.457773455 | J52: 3.339790281 | K52: 32.67411649 | M52: 30 | N52: 15 | O52: 9246
A53: 0.09105140145 | B53: 8.373636789 | C53: 0.561 | D53: 0.623 | E53: -0.02365400892 | F53: 0.2943030238 | G53: 0.2974430755 | H53: 2.447442788 | J53: 2.062173496 | K53: 20.56778696 | M53: 31 | N53: 15.5 | O53: 8674
A54: 0.3942496321 | B54: 21.67943476 | C54: 0.631 | D54: 0.763 | E54: -0.02322688422 | F54: 0.3594874138 | G54: 0.2922085199 | H54: 2.349966595 | J54: 3.052844831 | K54: 27.08851519 | M54: 32 | N54: =M54*$O$20 -> 16 | O54: 7914
A55: 0.7960097022 | B55: 27.58937915 | C55: 1.605 | D55: 0.529 | E55: -0.0235795117 | F55: 0.4181512218 | G55: 0.3019650276 | H55: 2.480531821 | J55: 3.299028162 | K55: 12.52674022 | M55: 33 | N55: 16.5 | O55: =COUNTIF($K$22:$K$300220,"<="&N55)-COUNTIF($K$22:$K$300220,"<="&N54) -> 7345
A56: 0.8690389369 | B56: 28.48445079 | C56: 0.879 | D56: 0.465 | E56: -0.02161315083 | F56: 0.3201718809 | G56: 0.2860154369 | H56: 2.377519084 | J56: 3.331542602 | K56: 14.31972624 | M56: 34 | N56: 17 | O56: 6758
A57: 0.6617122132 | B57: 25.82877065 | C57: 1.455 | D57: 0.542 | E57: -0.02372675828 | F57: 0.3828374089 | G57: 0.2979402675 | H57: 2.491941113 | J57: 3.231811013 | K57: 13.22545336 | M57: 35 | N57: 17.5 | O57: 6006
A58: 0.1687296435 | B58: 9.592516242 | C58: 1.981 | D58: 0.338 | E58: -0.02195115055 | F58: 0.3747543854 | G58: 0.3040241997 | H58: 2.352734875 | J58: 2.206442384 | K58: 4.385522744 | M58: 36 | N58: 18 | O58: 5725
A59: 0.8267648601 | B59: 27.97112856 | C59: 1.023 | D59: 0.377 | E59: -0.03008835419 | F59: 0.4039278397 | G59: 0.2990890438 | H59: 2.313371338 | J59: 3.313025142 | K59: 10.10398239 | M59: 37 | N59: 18.5 | O59: 5251
A60: 0.373814536 | B60: 21.31072352 | C60: 1.971 | D60: 0.466 | E60: -0.0260672845 | F60: 0.4019546109 | G60: 0.2954361096 | H60: 2.42035042 | J60: 3.035275942 | K60: 8.117526105 | M60: 38 | N60: 19 | O60: 4795
A61: 0.9497069462 | B61: 29.43045313 | C61: 1.397 | D61: 0.556 | E61: -0.02653283882 | F61: 0.381543316 | G61: 0.3186765129 | H61: 2.298196632 | J61: 3.364795203 | K61: 12.76715839 | M61: 39 | N61: 19.5 | O61: 4309
A62: 0.4296815003 | B62: 22.29676714 | C62: 0.979 | D62: 0.365 | E62: -0.03145389091 | F62: 0.4360991719 | G62: 0.2938635631 | H62: 2.335494262 | J62: 3.081586221 | K62: 9.461466878 | M62: 40 | N62: 20 | O62: 4111
A63: 0.410677765 | B63: 21.96897069 | C63: 0.691 | D63: 0.759 | E63: -0.0251251656 | F63: 0.4029143313 | G63: 0.303985896 | H63: 2.275808057 | J63: 3.066427827 | K63: 24.07982367 | M63: 41 | N63: 20.5 | O63: 3718
A64: 0.9084257803 | B64: 28.95159111 | C64: 0.693 | D64: 0.4 | E64: -0.02959200796 | F64: 0.3964431126 | G64: 0.2936872532 | H64: 2.34057521 | J64: 3.348101127 | K64: 14.37158112 | M64: 42 | N64: 21 | O64: 3421
A65: 0.5103386659 | B65: 23.61334079 | C65: 1.225 | D65: 0.512 | E65: -0.02118851895 | F65: 0.3993322536 | G65: 0.2946911904 | H65: 2.440205728 | J65: 3.140253954 | K65: 12.9458735 | M65: 43 | N65: 21.5 | O65: 3138
A66: 0.4948498067 | B66: 23.36906604 | C66: 1.967 | D66: 0.621 | E66: -0.02873730737 | F66: 0.4191008103 | G66: 0.309821556 | H66: 2.442040306 | J66: 3.129625797 | K66: 11.95816788 | M66: 44 | N66: 22 | O66: 2919
A67: 0.8126363592 | B67: 27.79665585 | C67: 0.783 | D67: 0.611 | E67: -0.02420227376 | F67: 0.3642577188 | G67: 0.3016897553 | H67: 2.527972416 | J67: 3.306652341 | K67: 24.72935329 | M67: 45 | N67: 22.5 | O67: 2659
A68: 0.9022776827 | B68: 28.87934945 | C68: 1.296 | D68: 0.315 | E68: -0.02525430971 | F68: 0.4008222669 | G68: 0.3153320292 | H68: 2.353702757 | J68: 3.345558265 | K68: 7.974258835 | M68: 46 | N68: 23 | O68: 2470
A69: 0.03663656522 | B69: 7.139993143 | C69: 1.129 | D69: 0.782 | E69: -0.02913446552 | F69: 0.3424934952 | G69: 0.3054083722 | H69: 2.395018594 | J69: 1.891216176 | K69: 14.01669594 | M69: 47 | N69: 23.5 | O69: 2260
A70: 0.6523443857 | B70: 25.69955812 | C70: 0.732 | D70: 0.678 | E70: -0.03338029328 | F70: 0.3687782244 | G70: 0.29391025 | H70: 2.358368975 | J70: 3.226695207 | K70: 23.30451763 | M70: 48 | N70: 24 | O70: 2110
A71: 0.008363463002 | B71: 6.022464119 | C71: 1.193 | D71: 0.632 | E71: -0.0262012386 | F71: 0.4194530032 | G71: 0.3017378991 | H71: 2.431084491 | J71: 1.706081949 | K71: 10.76898108 | M71: 49 | N71: 24.5 | O71: 1966
A72: 0.1972176534 | B72: 9.965098859 | C72: 0.548 | D72: 0.598 | E72: -0.0294361546 | F72: 0.3964034962 | G72: 0.3037171946 | H72: 2.491005379 | J72: 2.246679919 | K72: 21.37079871 | M72: 50 | N72: 25 | O72: 1796
A73: 0.5870366057 | B73: 24.77169609 | C73: 1.898 | D73: 0.322 | E73: -0.02391082563 | F73: 0.3390638252 | G73: 0.2990625959 | H73: 2.330419773 | J73: 3.189169421 | K73: 5.357965178 | M73: 51 | N73: 25.5 | O73: 1640
A74: 0.07456167405 | B74: 8.052901776 | C74: 1.993 | D74: 0.529 | E74: -0.02427368133 | F74: 0.3960836574 | G74: 0.3025250505 | H74: 2.408483804 | J74: 2.020468248 | K74: 6.907797362 | M74: 52 | N74: 26 | O74: 1528
A75: 0.8333690882 | B75: 28.05217265 | C75: 0.734 | D75: 0.408 | E75: -0.02024573844 | F75: 0.3847420452 | G75: 0.312078495 | H75: 2.505140547 | J75: 3.315971603 | K75: 17.36615355 | M75: 53 | N75: 26.5 | O75: 1334
A76: 0.8793353982 | B76: 28.60757478 | C76: 1.708 | D76: 0.796 | E76: -0.0239896392 | F76: 0.4015016738 | G76: 0.3068202106 | H76: 2.386074713 | J76: 3.33593361 | K76: 16.74701014 | M76: 54 | N76: 27 | O76: 1231
A77: 0.3175301563 | B77: 20.23952174 | C77: 1.857 | D77: 0.765 | E77: -0.02818822369 | F77: 0.3793566797 | G77: 0.2947284377 | H77: 2.47745836 | J77: 2.982408878 | K77: 14.18789869 | M77: 55 | N77: 27.5 | O77: 1136
A78: 0.02851332507 | B78: 6.887899794 | C78: 1.731 | D78: 0.354 | E78: -0.02470685334 | F78: 0.408381163 | G78: 0.2978367651 | H78: 2.399615262 | J78: 1.852357881 | K78: 4.773713971 | M78: 56 | N78: 28 | O78: 1102
A79: 0.3472440319 | B79: 20.81589094 | C79: 0.949 | D79: 0.345 | E79: -0.02943099278 | F79: 0.3623039677 | G79: 0.2787989261 | H79: 2.300895512 | J79: 3.011201427 | K79: 8.283160519 | M79: 57 | N79: 28.5 | O79: 957
A80: 0.9154458013 | B80: 29.0337798 | C80: 0.743 | D80: 0.654 | E80: -0.02606633628 | F80: 0.2971408238 | G80: 0.3044118294 | H80: 2.369215297 | J80: 3.350986275 | K80: 24.51746085 | M80: 58 | N80: 29 | O80: 837
A81: 0.5838483098 | B81: 24.72510832 | C81: 0.775 | D81: 0.719 | E81: -0.02616395068 | F81: 0.3739104919 | G81: 0.2906434341 | H81: 2.35708102 | J81: 3.187247603 | K81: 22.97440492 | M81: 59 | N81: 29.5 | O81: 831
A82: 0.984189766 | B82: 29.82253196 | C82: 1.741 | D82: 0.778 | E82: -0.02599985315 | F82: 0.3324097358 | G82: 0.2922929378 | H82: 2.395757036 | J82: 3.378259297 | K82: 15.07921338 | M82: 60 | N82: 30 | O82: 746
A83: 0.7559564542 | B83: 27.08098237 | C83: 1.135 | D83: 0.698 | E83: -0.02708072213 | F83: 0.3985355125 | G83: 0.3135146694 | H83: 2.280460587 | J83: 3.280078049 | K83: 17.49409805 | M83: 61 | N83: 30.5 | O83: 647
A84: 0.2423709957 | B84: 18.64774872 | C84: 1.044 | D84: 0.325 | E84: -0.02227698729 | F84: 0.4546778581 | G84: 0.3024306549 | H84: 2.347867851 | J84: 2.898293401 | K84: 7.95824968 | M84: 62 | N84: 31 | O84: 581
A85: 0.4046845119 | B85: 21.86402605 | C85: 0.854 | D85: 0.458 | E85: -0.03237156688 | F85: 0.3340956449 | G85: 0.2964385911 | H85: 2.440198147 | J85: 3.061525859 | K85: 14.69641498 | M85: 63 | N85: 31.5 | O85: 575
A86: 0.07080403721 | B86: 7.974979773 | C86: 0.638 | D86: 0.337 | E86: -0.02454417687 | F86: 0.3591235156 | G86: 0.2926976463 | H86: 2.459325212 | J86: =-LN(-LN(1-(1/B86))) -> 2.010067098 | K86: =D86*(C86^((E86*J86)+F86-1))*EXP((G86*J86)+H86) -> 9.681218221 | M86: 64 | N86: =M86*$O$20 -> 32 | O86: 491
A87: 0.1047584177 | B87: 8.618674095 | C87: 1.989 | D87: 0.391 | E87: -0.0229548292 | F87: 0.4593880516 | G87: 0.3177832609 | H87: 2.502327783 | J87: 2.092900474 | K87: 6.194063855 | M87: 65 | N87: 32.5 | O87: =COUNTIF($K$22:$K$300220,"<="&N87)-COUNTIF($K$22:$K$300220,"<="&N86) -> 437
A88: 0.8817610223 | B88: 28.63647506 | C88: 1.479 | D88: 0.571 | E88: -0.02351474505 | F88: 0.3914833713 | G88: 0.300455967 | H88: 2.492209039 | J88: 3.336961501 | K88: 14.3764362 | M88: 66 | N88: 33 | O88: 368
A89: 0.8241870438 | B89: 27.93940697 | C89: 0.913 | D89: 0.31 | E89: -0.02403528502 | F89: 0.3645988541 | G89: 0.2905788075 | H89: 2.37700277 | J89: 3.311869495 | K89: 9.330214532 | M89: 67 | N89: 33.5 | O89: 357
A90: 0.7510042638 | B90: 27.01719761 | C90: 1.315 | D90: 0.659 | E90: -0.02586293229 | F90: 0.3999588948 | G90: 0.3045627661 | H90: 2.341515736 | J90: 3.277674958 | K90: 15.41306113 | M90: 68 | N90: 34 | O90: 306
A91: 0.7952192769 | B91: 27.57947164 | C91: 1.914 | D91: 0.568 | E91: -0.02369789676 | F91: 0.4004011617 | G91: 0.3127348968 | H91: 2.490173123 | J91: 3.298662278 | K91: 12.38072525 | M91: 69 | N91: 34.5 | O91: 250
A92: 0.9193594485 | B92: 29.07946305 | C92: 0.58 | D92: 0.681 | E92: -0.0240657393 | F92: 0.3589387524 | G92: 0.3002347363 | H92: 2.469803446 | J92: 3.352586345 | K92: 32.63308878 | M92: 70 | N92: 35 | O92: 220
A93: 0.6011696789 | B93: 24.97670294 | C93: 1.748 | D93: 0.661 | E93: -0.02686919441 | F93: 0.332316416 | G93: 0.295483001 | H93: 2.447254224 | J93: 3.197582644 | K93: 12.89989747 | M93: 71 | N93: 35.5 | O93: 181
A94: 0.7335093562 | B94: 26.79016037 | C94: 0.807 | D94: 0.787 | E94: -0.02728339445 | F94: 0.3170308814 | G94: 0.3028531004 | H94: 2.462620965 | J94: 3.269074152 | K94: 29.33316563 | M94: 72 | N94: 36 | O94: 146
A95: 0.8979358506 | B95: 28.82818346 | C95: 1.949 | D95: 0.494 | E95: -0.02700601617 | F95: 0.3884241443 | G95: 0.2649907807 | H95: 2.442722225 | J95: 3.343753333 | K95: 8.629547011 | M95: 73 | N95: 36.5 | O95: 133
A96: 0.9654762533 | B96: 29.61062257 | C96: 1.502 | D96: 0.316 | E96: -0.03101545732 | F96: 0.4264497522 | G96: 0.3118833432 | H96: 2.323362281 | J96: 3.371004795 | K96: 7.006642414 | M96: 74 | N96: 37 | O96: 102
A97: 0.1202024442 | B97: 8.876248899 | C97: 1.029 | D97: 0.557 | E97: -0.02679561376 | F97: 0.2755735369 | G97: 0.2812376446 | H97: 2.449767251 | J97: 2.124210616 | K97: 11.46900877 | M97: 75 | N97: 37.5 | O97: 110
A98: 0.8542494374 | B98: 28.3063161 | C98: 1.818 | D98: 0.411 | E98: -0.02559728755 | F98: 0.3887781213 | G98: 0.2948751953 | H98: 2.37390316 | J98: 3.325155399 | K98: 7.760297364 | M98: 76 | N98: 38 | O98: 87
A99: 0.2335460009 | B99: 18.4454759 | C99: 1.667 | D99: 0.78 | E99: -0.02492964925 | F99: 0.3174318152 | G99: 0.2940160829 | H99: 2.478236987 | J99: 2.88707919 | K99: 14.77642539 | M99: 77 | N99: 38.5 | O99: 54
A100: 0.151794906 | B100: 9.355957215 | C100: 0.872 | D100: 0.431 | E100: -0.02109207197 | F100: 0.3708818091 | G100: 0.3007556032 | H100: 2.388054453 | J100: 2.180026348 | K100: 9.919752574 | M100: 78 | N100: 39 | O100: 38
A101: 0.5482812604 | B101: 24.19651293 | C101: 0.936 | D101: 0.764 | E101: -0.02719331411 | F101: 0.361077855 | G101: 0.2915095677 | H101: 2.408302178 | J101: 3.165179469 | K101: 22.41534429 | M101: 79 | N101: 39.5 | O101: 36
A102: 0.02126489901 | B102: 6.630371852 | C102: 1.76 | D102: 0.343 | E102: -0.02388100491 | F102: 0.379814409 | G102: 0.2974519926 | H102: 2.476359246 | J102: 1.811031586 | K102: 4.806554409 | M102: 80 | N102: 40 | O102: 30
A103: 0.148739352 | B103: 9.31189274 | C103: 0.545 | D103: 0.58 | E103: -0.0232832347 | F103: 0.3687818348 | G103: 0.2920782377 | H103: 2.448398112 | J103: 2.175027557 | K103: 19.15985623 | M103: 81 | N103: 40.5 | O103: 22
A104: 0.574006896 | B104: 24.58049634 | C104: 1.29 | D104: 0.414 | E104: -0.0228009742 | F104: 0.3316079081 | G104: 0.3155291063 | H104: 2.316007476 | J104: 3.181258495 | K104: 9.480398019 | M104: 82 | N104: 41 | O104: 8
A105: 0.748883268 | B105: 26.98981464 | C105: 0.964 | D105: 0.758 | E105: -0.0293731119 | F105: 0.3760097997 | G105: 0.3074869711 | H105: 2.523319271 | J105: 3.27664153 | K105: 26.58052103 | M105: 83 | N105: 41.5 | O105: 6
A106: 0.89807353 | B106: 28.82980783 | C106: 0.815 | D106: 0.41 | E106: -0.02527908048 | F106: 0.3704386544 | G106: 0.3142262805 | H106: 2.323970745 | J106: 3.343810685 | K106: 13.86219218 | M106: 84 | N106: 42 | O106: 11
A107: 0.9979390035 | B107: 29.97694547 | C107: 0.54 | D107: 0.566 | E107: -0.02519120095 | F107: 0.3814924145 | G107: 0.3118622592 | H107: 2.483316949 | J107: 3.383512529 | K107: 30.05358271 | M107: 85 | N107: 42.5 | O107: 17
A108: 0.1563615257 | B108: 9.420994313 | C108: 1.583 | D108: 0.679 | E108: -0.02942639553 | F108: 0.3830095438 | G108: 0.3090127367 | H108: 2.380114494 | J108: 2.187358873 | K108: 10.54804139 | M108: 86 | N108: 43 | O108: 4
A109: 0.2880111379 | B109: 19.63955226 | C109: 1.08 | D109: 0.448 | E109: -0.02852295216 | F109: 0.3716386578 | G109: 0.2953906938 | H109: 2.432396751 | J109: 2.951529439 | K109: 11.54728821 | M109: 87 | N109: 43.5 | O109: 4
A110: 0.2457607158 | B110: 18.72446154 | C110: 0.728 | D110: 0.311 | E110: -0.02232019716 | F110: 0.3828535159 | G110: 0.290740345 | H110: 2.398055025 | J110: 2.902513745 | K110: 9.879406494 | M110: 88 | N110: 44 | O110: 1
A111: 0.7273059463 | B111: 26.70900751 | C111: 1.38 | D111: 0.632 | E111: -0.02644709899 | F111: 0.3681249263 | G111: 0.2742120839 | H111: 2.43353502 | J111: 3.265981815 | K111: 13.99785465 | M111: 89 | N111: 44.5 | O111: 1
A112: 0.330837842 | B112: 20.50084894 | C112: 1.553 | D112: 0.328 | E112: -0.02467440634 | F112: 0.3566985828 | G112: 0.3091632097 | H112: 2.472095007 | J112: 2.995566348 | K112: 7.154648691 | M112: 90 | N112: 45 | O112: 2
A113: 0.2712196703 | B113: 19.28448382 | C113: 0.945 | D113: 0.751 | E113: -0.02570084384 | F113: 0.3786506461 | G113: 0.29010946 | H113: 2.357295831 | J113: 2.93279496 | K113: 19.32098334 | M113: 91 | N113: 45.5 | O113: 1
A114: 0.5669263916 | B114: 24.4756855 | C114: 1.768 | D114: 0.33 | E114: -0.02816058177 | F114: 0.4579073172 | G114: 0.3031780415 | H114: 2.498999665 | J114: 3.176895216 | K114: 7.341993752 | M114: 92 | N114: 46 | O114: 0
A115: 0.1289324134 | B115: 9.014542524 | C115: 0.567 | D115: 0.325 | E115: -0.02790254923 | F115: 0.3854525837 | G115: 0.2889321056 | H115: 2.334950676 | J115: 2.1406244 | K115: 9.134855306 | M115: 93 | N115: 46.5 | O115: 1
A116: 0.7998058589 | B116: 27.63689331 | C116: 1.228 | D116: 0.542 | E116: -0.02449157814 | F116: 0.3454019156 | G116: 0.2872275729 | H116: 2.365508307 | J116: 3.300781001 | K116: 12.80767722 | M116: 94 | N116: 47 | O116: 1
A117: 0.6007861485 | B117: 24.97117166 | C117: 1.113 | D117: 0.529 | E117: -0.02922967292 | F117: 0.3748964656 | G117: 0.2926497651 | H117: 2.415441288 | J117: 3.197356574 | K117: 13.97753773 | M117: 95 | N117: 47.5 | O117: 0
A118: 0.6880298366 | B118: 26.18695938 | C118: 1.471 | D118: 0.792 | E118: -0.0233439825 | F118: 0.4249614771 | G118: 0.2948348129 | H118: 2.480477534 | J118: 3.245857128 | K118: 19.16527831 | M118: 96 | N118: =M118*$O$20 -> 48 | O118: 0
A119: 0.6905772679 | B119: 26.22126399 | C119: 1.252 | D119: 0.7 | E119: -0.0240655338 | F119: 0.3643896137 | G119: 0.3003406717 | H119: 2.429489047 | J119: 3.247192061 | K119: 17.95137741 | M119: 97 | N119: 48.5 | O119: =COUNTIF($K$22:$K$300220,"<="&N119)-COUNTIF($K$22:$K$300220,"<="&N118) -> 0
A120: 0.9699528111 | B120: 29.66150008 | C120: 1.107 | D120: 0.311 | E120: -0.02879382859 | F120: 0.3960495698 | G120: 0.3140356921 | H120: 2.455094908 | J120: 3.372751342 | K120: 9.728220971 | M120: 98 | N120: 49 | O120: 0
A121: 0.05664587324 | B121: 7.660964892 | C121: 1.152 | D121: 0.61 | E121: -0.02690306329 | F121: 0.3915686292 | G121: 0.3021496534 | H121: 2.46697086 | J121: 1.967016206 | K121: 11.86303246 | M121: 99 | N121: 49.5 | O121: 0
A122: 0.41994248 | B122: 22.12970462 | C122: 1.677 | D122: 0.445 | E122: -0.03003844186 | F122: 0.4173602679 | G122: 0.2827656653 | H122: 2.45128066 | J122: 3.073889421 | K122: 8.686966651 | M122: 100 | N122: 50 | O122: 0
A123: 0.9942755586 | B123: 29.93590694 | C123: 1.608 | D123: 0.398 | E123: -0.03348789044 | F123: 0.339866928 | G123: 0.303377848 | H123: 2.315163357 | J123: 3.382119066 | K123: 7.787852836
A124: 0.3981400094 | B124: 21.74853724 | C124: 1.331 | D124: 0.765 | E124: -0.02264645287 | F124: 0.3683102608 | G124: 0.3144828888 | H124: 2.361288217 | J124: 3.056103443 | K124: 17.35867529
A125: 0.8066417646 | B125: 27.72217068 | C125: 1.044 | D125: 0.622 | E125: -0.02776335923 | F125: 0.4563049191 | G125: 0.3109597232 | H125: 2.384270286 | J125: 3.30391927 | K125: 18.34725426
A126: 0.09880007216 | B126: 8.514257961 | C126: 1.023 | D126: 0.696 | E126: -0.02488695028 | F126: 0.379733898 | G126: 0.301304446 | H126: 2.39007699 | J126: 2.079922552 | K126: 14.00031302
A127: 0.1261555766 | B127: 8.971076311 | C127: 1.93 | D127: 0.342 | E127: -0.02520420616 | F127: 0.3064882281 | G127: 0.303035101 | H127: 2.330231241 | J127: 2.135494525 | K127: 4.108379401
A128: 0.8631727665 | B128: 28.41397746 | C128: 1.631 | D128: 0.651 | E128: -0.02592701513 | F128: 0.4329715489 | G128: 0.294576024 | H128: 2.435926243 | J128: 3.329020584 | K128: 14.40709334
A129: 0.9317920995 | B129: 29.22394553 | C129: 1.508 | D129: 0.634 | E129: -0.02941341119 | F129: 0.3497652157 | G129: 0.3170281205 | H129: 2.523828335 | J129: 3.357630099 | K129: 16.85943026
A130: 0.1228225566 | B130: 8.91826742 | C130: 1.669 | D130: 0.454 | E130: -0.02922029662 | F130: 0.3380602165 | G130: 0.3215081485 | H130: 2.33384388 | J130: 2.129226328 | K130: 6.409739655
A131: 0.2161872233 | B131: 18.03612799 | C131: 1.112 | D131: 0.734 | E131: -0.02727305926 | F131: 0.4075317968 | G131: 0.2997447377 | H131: 2.51574324 | J131: 2.863992125 | K131: 19.96089008
A132: 0.05085194887 | B132: 7.521208759 | C132: 1.97 | D132: 0.609 | E132: -0.03003201313 | F132: 0.4237779296 | G132: 0.3008691182 | H132: 2.367944123 | J132: 1.947241243 | K132: 7.595248566
A133: 0.2907413838 | B133: 19.69629712 | C133: 1.542 | D133: 0.688 | E133: -0.02959006994 | F133: 0.3634810802 | G133: 0.3059687538 | H133: 2.421022651 | J133: 2.954491192 | K133: 13.97839568
A134: 0.8186887079 | B134: 27.87158045 | C134: 1.775 | D134: 0.697 | E134: -0.02099356822 | F134: 0.3447178369 | G134: 0.3085302668 | H134: 2.306296434 | J134: 3.30939402 | K134: 12.81361466
A135: 0.862112428 | B135: 28.40121354 | C135: 1.85 | D135: 0.515 | E135: -0.02581047097 | F135: 0.3935637971 | G135: 0.3106534678 | H135: 2.407760326 | J135: 3.328563123 | K135: 10.5094945
A136: 0.4603246384 | B136: 22.81042167 | C136: 0.5 | D136: 0.728 | E136: -0.03013887934 | F136: 0.3299773489 | G136: 0.2975797308 | H136: 2.385327603 | J136: 3.104886454 | K136: 33.82202258
A137: 0.6653732619 | B137: 25.87901954 | C137: 0.508 | D137: 0.626 | E137: -0.02614017225 | F137: 0.3390018601 | G137: 0.2993450681 | H137: 2.499165461 | J137: 3.233793428 | K137: 33.2384941
A138: 0.7580541302 | B138: 27.10793767 | C138: 1.57 | D138: 0.543 | E138: -0.02983636914 | F138: 0.3945467822 | G138: 0.2961803191 | H138: 2.451343765 | J138: 3.281091856 | K138: 12.1245099
A139: 0.5208333009 | B139: 23.77675033 | C139: 1.658 | D139: 0.629 | E139: -0.03058754365 | F139: 0.3506738305 | G139: 0.2952271668 | H139: 2.382734975 | J139: 3.147301186 | K139: 11.83780538
A140: 0.01859479866 | B140: 6.524581855 | C140: 0.803 | D140: 0.384 | E140: -0.02688774552 | F140: 0.3719428848 | G140: 0.2919384256 | H140: 2.337249165 | J140: 1.79354523 | K140: 7.784369038
A141: 0.3645660715 | B141: 21.14054372 | C141: 1.195 | D141: 0.682 | E141: -0.02275821749 | F141: 0.4572873327 | G141: 0.2947401851 | H141: 2.398905583 | J141: 3.02706163 | K141: 16.43514272
A142: 0.844884454 | B142: 28.19271963 | C142: 1.671 | D142: 0.523 | E142: -0.02556260894 | F142: 0.4083226714 | G142: 0.3223164756 | H142: 2.342756471 | J142: 3.32106087 | K142: 11.2194403
A143: 0.5381176526 | B143: 24.04233295 | C143: 0.638 | D143: 0.757 | E143: -0.02376801045 | F143: 0.4403383322 | G143: 0.3019011495 | H143: 2.47914469 | J143: 3.158649817 | K143: 31.17492361
A144: 0.4271141775 | B144: 22.25291283 | C144: 0.626 | D144: 0.581 | E144: -0.02997058584 | F144: 0.3887261238 | G144: 0.299791968 | H144: 2.380443632 | J144: 3.079571521 | K144: 21.98204015
A145: 0.3578097593 | B145: 21.0148531 | C145: 0.581 | D145: 0.554 | E145: -0.02756605761 | F145: 0.3119528141 | G145: 0.3006232521 | H145: 2.522646961 | J145: 3.020951107 | K145: 26.02496674
A146: 0.01246191884 | B146: 6.248094489 | C146: 1.127 | D146: 0.681 | E146: -0.02689229584 | F146: 0.406854892 | G146: 0.3128280502 | H146: 2.451045215 | J146: 1.746337948 | K146: 12.63694792
A147: 0.1540658353 | B147: 9.388419922 | C147: 0.739 | D147: 0.423 | E147: -0.03012471703 | F147: 0.3659405144 | G147: 0.310222929 | H147: 2.473227282 | J147: 2.183693049 | K147: 12.20625329
A148: 0.7000028948 | B148: 26.34764584 | C148: 1.581 | D148: 0.599 | E148: -0.03048608579 | F148: 0.4338574997 | G148: 0.3089896411 | H148: 2.331857648 | J148: 3.252094775 | K148: 12.42223758
A149: 0.1919126124 | B149: 9.897864489 | C149: 1.391 | D149: 0.773 | E149: -0.02283386045 | F149: 0.4087435 | G149: 0.3038199944 | H149: 2.437233302 | J149: 2.239537782 | K149: 14.12814287
A150: 0.4493404984 | B150: 22.6283245 | C150: 1.5 | D150: 0.683 | E150: -0.02596176735 | F150: 0.3565266443 | G150: 0.3071917377 | H150: 2.374361935 | J150: =-LN(-LN(1-(1/B150))) -> 3.096688217 | K150: =D150*(C150^((E150*J150)+F150-1))*EXP((G150*J150)+H150) -> 14.16642866
A151: 0.3876985998 | B151: 21.56229763 | C151: 0.64 | D151: 0.367 | E151: -0.02819349577 | F151: 0.3829245309 | G151: 0.3091748438 | H151: 2.363710753 | J151: 3.047296706 | K151: 13.69731619
A152: 0.6237364332 | B152: 25.29911118 | C152: 1.904 | D152: 0.686 | E152: -0.0232605221 | F152: 0.387429753 | G152: 0.3006843278 | H152: 2.515020344 | J152: 3.210672287 | K152: 14.31031685
A153: 0.2061693085 | B153: 17.79238155 | C153: 1.828 | D153: 0.772 | E153: -0.02521247156 | F153: 0.3735785616 | G153: 0.3012608345 | H153: 2.31389292 | J153: 2.849987248 | K153: 12.09141328
A154: 0.1956158876 | B154: 9.944894938 | C154: 0.891 | D154: 0.431 | E154: -0.02936518288 | F154: 0.3855910911 | G154: 0.2843280917 | H154: 2.423592345 | J154: 2.244539074 | K154: 9.96069653
A155: 0.3584254926 | B155: 21.02635673 | C155: 0.917 | D155: 0.381 | E155: -0.02144540862 | F155: 0.384554586 | G155: 0.3052063932 | H155: 2.370813153 | J155: 3.021511918 | K155: 10.8806237
A156: 0.7440110553 | B156: 26.92676504 | C156: 0.861 | D156: 0.656 | E156: -0.02501569308 | F156: 0.4213001962 | G156: 0.3160383316 | H156: 2.333893706 | J156: 3.274257981 | K156: 21.03015365
A157: 0.9817310499 | B157: 29.79480544 | C157: 1.211 | D157: 0.504 | E157: -0.020971682 | F157: 0.3493819304 | G157: 0.3087371284 | H157: 2.438905188 | J157: 3.377313095 | K157: 14.27214644
A158: 0.1298138962 | B158: 9.028242424 | C158: 0.68 | D158: 0.618 | E158: -0.02213070476 | F158: 0.402871537 | G158: 0.2892781442 | H158: 2.510568514 | J158: 2.142235808 | K158: 18.13017507
A159: 0.6244261808 | B159: 25.30887286 | C159: 0.615 | D159: 0.532 | E159: -0.02832607119 | F159: 0.4358569249 | G159: 0.2877863422 | H159: 2.399966304 | J159: 3.211065946 | K159: 20.31625191
A160: 0.02050159305 | B160: 6.600843256 | C160: 1.313 | D160: 0.354 | E160: -0.03039258255 | F160: 0.3792673709 | G160: 0.2994288827 | H160: 2.47717957 | J160: 1.806181535 | K160: 6.022852526
A161: 0.5948360126 | B161: 24.88513149 | C161: 1.617 | D161: 0.474 | E161: -0.02624794934 | F161: 0.3856707764 | G161: 0.2980440178 | H161: 2.315129448 | J161: 3.193833414 | K161: 8.890359576
A162: 0.4981171578 | B162: 23.4209101 | C162: 0.753 | D162: 0.637 | E162: -0.02712403619 | F162: 0.4057838554 | G162: 0.3269034484 | H162: 2.329604627 | J162: 3.131890947 | K162: 22.08983387
A163: 0.1309809881 | B163: 9.046309864 | C163: 0.785 | D163: 0.359 | E163: -0.02886833397 | F163: 0.3940451048 | G163: 0.2895670473 | H163: 2.474373246 | J163: 2.144356963 | K163: 9.323565481
A164: 0.1972692684 | B164: 9.965748538 | C164: 1.008 | D164: 0.781 | E164: -0.02430758314 | F164: 0.3526797632 | G164: 0.2951251375 | H164: 2.384221223 | J164: 2.246748685 | K164: 16.35477633
A165: 0.7812335685 | B165: 27.40334776 | C165: 1.525 | D165: 0.735 | E165: -0.0209391324 | F165: 0.4024881883 | G165: 0.2859354736 | H165: 2.391325673 | J165: 3.292135579 | K165: 15.54194715
A166: 0.8074402059 | B166: 27.73210756 | C166: 1.369 | D166: 0.694 | E166: -0.02785801804 | F166: 0.4195275403 | G166: 0.2841192357 | H166: 2.381212397 | J166: 3.304284314 | K166: 15.54149178
A167: 0.5023085803 | B167: 23.48716835 | C167: 0.697 | D167: 0.586 | E167: -0.02887897776 | F167: 0.3965662509 | G167: 0.3122221473 | H167: 2.382803419 | J167: 3.134778424 | K167: 21.70656814
A168: 0.6368290041 | B168: 25.483493 | C168: 1.497 | D168: 0.396 | E168: -0.0268375442 | F168: 0.3372423011 | G168: 0.2901169048 | H168: 2.404810097 | J168: 3.218081794 | K168: 8.246966386
A169: 0.4772682164 | B169: 23.08710674 | C169: 1.617 | D169: 0.399 | E169: -0.0237457179 | F169: 0.3589860221 | G169: 0.303211132 | H169: 2.489463076 | J169: 3.117215869 | K169: 8.777729616
A170: 0.9657991635 | B170: 29.61429649 | C170: 1.261 | D170: 0.784 | E170: -0.02890427107 | F170: 0.4356551993 | G170: 0.3015085633 | H170: 2.420050784 | J170: 3.371131017 | K170: 20.89809765
A171: 0.5791874815 | B171: 24.65677423 | C171: 0.577 | D171: 0.467 | E171: -0.03008447037 | F171: 0.3620364401 | G171: 0.3054831833 | H171: 2.351475958 | J171: 3.184422016 | K171: 19.42079401
A172: 0.03507522883 | B172: 7.093896751 | C172: 1.602 | D172: 0.341 | E172: -0.02640755606 | F172: 0.3130264333 | G172: 0.3055568725 | H172: 2.305028874 | J172: 1.884223081 | K172: 4.296095829
A173: 0.4233410823 | B173: 22.18822194 | C173: 1.95 | D173: 0.732 | E173: -0.02622199965 | F173: 0.3450089507 | G173: 0.3033537233 | H173: 2.380553472 | J173: 3.076592143 | K173: 12.31201229
A174: 0.100426239 | B174: 8.543060805 | C174: 0.953 | D174: 0.522 | E174: -0.02434999511 | F174: 0.3038421464 | G174: 0.2999350701 | H174: 2.499333129 | J174: 2.083519367 | K174: 12.30642649
A175: 0.2417730291 | B175: 18.63416059 | C175: 1.873 | D175: 0.499 | E175: -0.02802466907 | F175: 0.3875299224 | G175: 0.2907862262 | H175: 2.477436547 | J175: 2.897543991 | K175: 8.931147059
A176: 0.7152894718 | B176: 26.55081768 | C176: 1.951 | D176: 0.703 | E176: -0.02650887033 | F176: 0.4233170652 | G176: 0.3056526037 | H176: 2.495803713 | J176: 3.259926343 | K176: 14.82971216
A177: 0.1788539866 | B177: 9.728292327 | C177: 1.364 | D177: 0.749 | E177: -0.02747815657 | F177: 0.3563218495 | G177: 0.3103816882 | H177: 2.393481798 | J177: 2.221294237 | K177: 13.13336265
A178: 0.9830974667 | B178: 29.81021857 | C178: 0.831 | D178: 0.621 | E178: -0.02626972276 | F178: 0.3547444196 | G178: 0.2851818888 | H178: 2.3982235 | J178: 3.377839198 | K178: 20.51134624
A179: 0.2376274607 | B179: 18.53949134 | C179: 1.77 | D179: 0.526 | E179: -0.0207804823 | F179: 0.3529630559 | G179: 0.3000008029 | H179: 2.570079307 | J179: 2.892307156 | K179: 10.93049903
A180: 0.5170875059 | B180: 23.71861601 | C180: 1.085 | D180: 0.63 | E180: -0.02806204172 | F180: 0.3895135687 | G180: 0.2922434496 | H180: 2.459753947 | J180: 3.144799763 | K180: 17.45738468
A181: 0.2544330171 | B181: 18.91834982 | C181: 0.78 | D181: 0.579 | E181: -0.03058103309 | F181: 0.352885286 | G181: 0.3046907543 | H181: 2.40494345 | J181: 2.913101712 | K181: 18.70897121
A182: 0.05448848068 | B182: 7.609800775 | C182: 0.578 | D182: 0.407 | E182: -0.02440409739 | F182: 0.3446228905 | G182: 0.2994095993 | H182: 2.31901926 | J182: 1.959822123 | K182: 10.93917652
A183: 0.2495097348 | B183: 18.80869207 | C183: 0.813 | D183: 0.4 | E183: -0.0290721276 | F183: 0.4227261475 | G183: 0.3129361107 | H183: 2.424405673 | J183: 2.907127241 | K183: 12.86958281
A184: 0.6394569439 | B184: 25.52027299 | C184: 0.598 | D184: 0.709 | E184: -0.02587800923 | F184: 0.4146356463 | G184: 0.3011609974 | H184: 2.452542766 | J184: 3.219553276 | K184: 30.63240438
A185: 0.2180819136 | B185: 18.08158802 | C185: 1.557 | D185: 0.753 | E185: -0.02813360615 | F185: 0.3816912092 | G185: 0.2965745117 | H185: 2.416857839 | J185: 2.866582536 | K185: 14.49570906
A186: 0.7031952603 | B186: 26.39025701 | C186: 0.837 | D186: 0.798 | E186: -0.02417964696 | F186: 0.3538590449 | G186: 0.3102140533 | H186: 2.473798065 | J186: 3.253742379 | K186: 29.56157148
A187: 0.1659281962 | B187: 9.554231497 | C187: 1.048 | D187: 0.339 | E187: -0.02412019604 | F187: 0.3609320325 | G187: 0.2881005214 | H187: 2.331262757 | J187: 2.202214352 | K187: 6.369458997
A188: 0.8034265176 | B188: 27.68210593 | C188: 1.606 | D188: 0.449 | E188: -0.02669254763 | F188: 0.3807782544 | G188: 0.3067659791 | H188: 2.32320046 | J188: 3.302446085 | K188: 9.028902975
A189: 0.9137173641 | B189: 29.01357301 | C189: 1.157 | D189: 0.531 | E189: -0.03298470391 | F189: 0.3704963107 | G189: 0.3103898949 | H189: 2.445827654 | J189: 3.350277708 | K189: 15.56166499
A190: 0.01898650107 | B190: 6.54055595 | C190: 1.103 | D190: 0.719 | E190: -0.02554929351 | F190: 0.362927715 | G190: 0.3059096619 | H190: 2.472765434 | J190: 1.796205407 | K190: 13.81002227
A191: 0.5672974908 | B191: 24.48119498 | C191: 0.987 | D191: 0.539 | E191: -0.02058400161 | F191: 0.3647463717 | G191: 0.2898686043 | H191: 2.361466509 | J191: 3.177125051 | K191: 14.49123232
A192: 0.1601925188 | B192: 9.474825679 | C192: 1.046 | D192: 0.733 | E192: -0.02253739992 | F192: 0.4078518295 | G192: 0.3014075582 | H192: 2.380713823 | J192: 2.193387531 | K192: 14.91479614
A193: 0.1033364847 | B193: 8.594031245 | C193: 1.416 | D193: 0.41 | E193: -0.0313733685 | F193: 0.373117796 | G193: 0.3101056082 | H193: 2.44928542 | J193: 2.089852793 | K193: 7.134228089
A194: 0.9087849404 | B194: 28.95580376 | C194: 1.762 | D194: 0.521 | E194: -0.02626745053 | F194: 0.3808727113 | G194: 0.3038352772 | H194: 2.457479976 | J194: 3.34824921 | K194: 11.27138696
A195: 0.4364297715 | B195: 22.41141844 | C195: 1.625 | D195: 0.623 | E195: -0.02831763332 | F195: 0.3697465679 | G195: 0.3073004555 | H195: 2.420975059 | J195: 3.086834281 | K195: 12.78048988
A196: 0.423381414 | B196: 22.18891496 | C196: 0.548 | D196: 0.353 | E196: -0.0294834804 | F196: 0.3817424621 | G196: 0.2974509909 | H196: 2.387026236 | J196: 3.076624107 | K196: 14.69215156
A197: 0.9028100404 | B197: 28.88561449 | C197: 1.089 | D197: 0.424 | E197: -0.03019680183 | F197: 0.3554635285 | G197: 0.3037807048 | H197: 2.409762879 | J197: 3.345779047 | K197: 12.23813793
A198: 0.3724642152 | B198: 21.28600875 | C198: 1.392 | D198: 0.535 | E198: -0.02501805614 | F198: 0.4416792234 | G198: 0.3107977676 | H198: 2.538203908 | J198: 3.03408718 | K198: 14.09665344
A199: 0.007633473071 | B199: 5.976823492 | C199: 0.5 | D199: 0.632 | E199: -0.02745963022 | F199: 0.3536002553 | G199: 0.2972115597 | H199: 2.366296031 | J199: 1.697737007 | K199: 18.03620918
A200: 0.76888648 | B200: 27.2465444 | C200: 1.661 | D200: 0.315 | E200: -0.02581027595 | F200: 0.3406537574 | G200: 0.3085990912 | H200: 2.398242322 | J200: 3.286288778 | K200: 6.550888523
A201: 0.4559467935 | B201: 22.73810815 | C201: 1.847 | D201: 0.623 | E201: -0.02725077013 | F201: 0.381438844 | G201: 0.3013149935 | H201: 2.280444021 | J201: 3.101638855 | K201: 10.07865603
A202: 0.5437178129 | B202: 24.12746465 | C202: 1.526 | D202: 0.539 | E202: -0.02758090945 | F202: 0.4131125038 | G202: 0.3068191606 | H202: 2.42800991 | J202: 3.162260488 | K202: 12.12539071
A203: 0.1654746539 | B203: 9.548003049 | C203: 0.933 | D203: 0.743 | E203: -0.02473873401 | F203: 0.3200020948 | G203: 0.2974528489 | H203: 2.362893409 | J203: 2.201524807 | K203: 15.98449064
A204: 0.4822482561 | B204: 23.1674923 | C204: 0.812 | D204: 0.754 | E204: -0.02352383803 | F204: 0.3699403231 | G204: 0.2996139387 | H204: 2.370449419 | J204: 3.120769621 | K204: 23.79829969
A205: 0.734652463 | B205: 26.80507697 | C205: 1.685 | D205: 0.683 | E205: -0.01881865542 | F205: 0.3907115183 | G205: 0.2916205874 | H205: 2.479547629 | J205: 3.269641511 | K205: 14.90612005
A206: 0.551550229 | B206: 24.24579831 | C206: 0.503 | D206: 0.607 | E206: -0.03061481233 | F206: 0.3376110175 | G206: 0.2893654221 | H206: 2.368070475 | J206: 3.167257783 | K206: 27.30692782
... 4294 more rows

Sheet list options (hidden)
A1: estimate type
A2: national range
A3: local range
A4: exact value
